{"text_format":"1","workbook":"xlsx","n_sheets":53,"sheets":["Help","Home","GENTPJ","GENROU","GENROE","GENSAL","GENSAE","EX_AC7B","EX_AC8B","EX_ESAC1A","EX_ESAC2A","EX_ESAC3A","EX_ESAC5A","EX_ESAC8B","EX_ESST1A","EX_ESST2A","EX_ESST3A","EX_ESST4B","EX_ESDC1A","EX_EX2000","EX_EXAC1","EX_EXAC2","EX_EXAC3","EX_EXAC4","EX_EXDC2","EX_EXPIC1","EX_EXST1","EX_EXST2","EX_ST2A","EX_EXST3","EX_IEEET1","EX_IEEET2","EX_IEEET3","EX_IEEET4","EX_IEEEX1","EX_REXSYS","EX_SEXS","EX_ST6B","G_GAST","G_GAST2A","G_GOV1","G_HYGOV","G_IEEEG1","G_IEESGO","G_PIDGOV","G_TGOV3","G_UCBGT","G_UCCPSS","G_UHRSG","G_WSIEG1","ST_IEEEST","ST_PSS2A","ST_PSS2B"],"not_rendered":{"charts":0,"images":18,"macros":1,"external_links":0,"defined_names":7,"comments":1,"pivot_tables":0},"unopened":[],"bounds":{"document_bytes":16777216,"sheet_cells":100000,"rows_first":2000,"rows_last":500,"rows_between":2000,"halvings":0,"cell_chars":16384,"cell_head_chars":4096},"cells_cut":0,"cells_raw":0,"read":"whole","date_system":"1900"}

{"sheet":"Help","index":0,"n_rows":0,"n_cols":0,"rows_kept":0,"cut":false,"hidden":false,"merged":[]}

{"sheet":"Home","index":1,"n_rows":79,"n_cols":10,"rows_kept":79,"cut":false,"hidden":false,"merged":[[35,1,35,2],[6,1,8,1],[10,1,12,1],[14,1,16,1],[18,1,20,1],[23,1,23,2]]}
[]
[]
[null,"1.  Resource Site Code","(Site Code)"]
[null,"2.  Enter Unit Names-->","UNIT NAME","UNIT1","UNIT2","UNIT3","UNIT4","UNIT5","UNIT6"]
[null,"3.  This will auto-fill-->","RESOURCE NAME",{"$f":"SITECODE&\"_\"&D4","v":"(Site Code)_UNIT1"},{"$f":"SITECODE&\"_\"&E4","v":"(Site Code)_UNIT2"},"(Site Code)_UNIT3","(Site Code)_UNIT4","(Site Code)_UNIT5","(Site Code)_UNIT6"]
[null,null,null,{"$f":"IF(D9&D13&D17&D21=\"\",\"\",IF(D9&D13&D17&D21=\"Completed!Completed!Completed!Completed!\",\"Complete!\",\"(Incomplete)\"))","v":""},"","","","",""]
[null,"Generator Model","1.  Select Model ….. --->","(Make Selection)","(Make Selection)","(Make Selection)","(Make Selection)","(Make Selection)","(Make Selection)"]
[null,null,"2.  Jump to model sheet -->"]
[null,null,"3. Flag indicates completed",{"$f":"IF(D7=\"(Make Selection)\",\"\",IF(INDIRECT(D7&\"!C5\")=TRUE,\"Completed!\",\"<Not completed>\"))","v":""},{"$f":"IF(E7=\"(Make Selection)\",\"\",IF(INDIRECT(E7&\"!D5\")=TRUE,\"Completed!\",\"<Not completed>\"))","v":""},{"$f":"IF(F7=\"(Make Selection)\",\"\",IF(INDIRECT(F7&\"!E5\")=TRUE,\"Completed!\",\"<Not completed>\"))","v":""},{"$f":"IF(G7=\"(Make Selection)\",\"\",IF(INDIRECT(G7&\"!F5\")=TRUE,\"Completed!\",\"<Not completed>\"))","v":""},{"$f":"IF(H7=\"(Make Selection)\",\"\",IF(INDIRECT(H7&\"!F5\")=TRUE,\"Completed!\",\"<Not completed>\"))","v":""},{"$f":"IF(I7=\"(Make Selection)\",\"\",IF(INDIRECT(I7&\"!F5\")=TRUE,\"Completed!\",\"<Not completed>\"))","v":""}]
[]
[null,"Exciter Model","1.  Select Model ….. --->","(Make Selection)","(Make Selection)","(Make Selection)","(Make Selection)","(Make Selection)","(Make Selection)"]
[null,null,"2.  Jump to model sheet -->"]
[null,null,"3. Flag indicates completed",{"$f":"IF(D11=\"(Make Selection)\",\"\",IF(INDIRECT(\"EX_\"&D11&\"!C5\")=TRUE,\"Completed!\",\"<Not completed>\"))","v":""},{"$f":"IF(E11=\"(Make Selection)\",\"\",IF(INDIRECT(\"EX_\"&E11&\"!D5\")=TRUE,\"Completed!\",\"<Not completed>\"))","v":""},{"$f":"IF(F11=\"(Make Selection)\",\"\",IF(INDIRECT(\"EX_\"&F11&\"!E5\")=TRUE,\"Completed!\",\"<Not completed>\"))","v":""},{"$f":"IF(G11=\"(Make Selection)\",\"\",IF(INDIRECT(\"EX_\"&G11&\"!F5\")=TRUE,\"Completed!\",\"<Not completed>\"))","v":""},{"$f":"IF(H11=\"(Make Selection)\",\"\",IF(INDIRECT(\"EX_\"&H11&\"!F5\")=TRUE,\"Completed!\",\"<Not completed>\"))","v":""},{"$f":"IF(I11=\"(Make Selection)\",\"\",IF(INDIRECT(\"EX_\"&I11&\"!F5\")=TRUE,\"Completed!\",\"<Not completed>\"))","v":""}]
[]
[null,"Governor Model","1.  Select Model ….. --->","(Make Selection)","(Make Selection)","(Make Selection)","(Make Selection)","(Make Selection)","(Make Selection)"]
[null,null,"2.  Jump to model sheet -->"]
[null,null,"3. Flag indicates completed",{"$f":"IF(D15=\"(Make Selection)\",\"\",IF(INDIRECT(\"G_\"&D15&\"!C5\")=TRUE,\"Completed!\",\"<Not completed>\"))","v":""},{"$f":"IF(E15=\"(Make Selection)\",\"\",IF(INDIRECT(\"G_\"&E15&\"!D5\")=TRUE,\"Completed!\",\"<Not completed>\"))","v":""},{"$f":"IF(F15=\"(Make Selection)\",\"\",IF(INDIRECT(\"G_\"&F15&\"!E5\")=TRUE,\"Completed!\",\"<Not completed>\"))","v":""},{"$f":"IF(G15=\"(Make Selection)\",\"\",IF(INDIRECT(\"G_\"&G15&\"!F5\")=TRUE,\"Completed!\",\"<Not completed>\"))","v":""},{"$f":"IF(H15=\"(Make Selection)\",\"\",IF(INDIRECT(\"G_\"&H15&\"!F5\")=TRUE,\"Completed!\",\"<Not completed>\"))","v":""},{"$f":"IF(I15=\"(Make Selection)\",\"\",IF(INDIRECT(\"G_\"&I15&\"!F5\")=TRUE,\"Completed!\",\"<Not completed>\"))","v":""}]
[]
[null,"Power System Stabilizer Model","1.  Select Model ….. --->","(Make Selection)","(Make Selection)","(Make Selection)","(Make Selection)","(Make Selection)","(Make Selection)"]
[null,null,"2.  Jump to model sheet -->"]
[null,null,"3. Flag indicates completed",{"$f":"IF(D19=\"(Make Selection)\",\"\",IF(INDIRECT(\"ST_\"&D19&\"!C5\")=TRUE,\"Completed!\",\"<Not completed>\"))","v":""},{"$f":"IF(E19=\"(Make Selection)\",\"\",IF(INDIRECT(\"ST_\"&E19&\"!D5\")=TRUE,\"Completed!\",\"<Not completed>\"))","v":""},{"$f":"IF(F19=\"(Make Selection)\",\"\",IF(INDIRECT(\"ST_\"&F19&\"!E5\")=TRUE,\"Completed!\",\"<Not completed>\"))","v":""},{"$f":"IF(G19=\"(Make Selection)\",\"\",IF(INDIRECT(\"ST_\"&G19&\"!F5\")=TRUE,\"Completed!\",\"<Not completed>\"))","v":""},{"$f":"IF(H19=\"(Make Selection)\",\"\",IF(INDIRECT(\"ST_\"&H19&\"!G5\")=TRUE,\"Completed!\",\"<Not completed>\"))","v":""},{"$f":"IF(I19=\"(Make Selection)\",\"\",IF(INDIRECT(\"ST_\"&I19&\"!H5\")=TRUE,\"Completed!\",\"<Not completed>\"))","v":""}]
[]
[]
[null,"Check Data"]
[]
[]
[null,"Site code entered?","(Click button)"]
[null,"Unit names entered?","(Click button)"]
[null,"Models complete?","(Click button)"]
[]
[]
[]
[]
[]
[]
[null,"NERC MOD-026 / MOD-027"]
[null,null,"(optional)"]
[null,"Date of MOD-026 test"]
[null,"Date of MOD-027 test"]
[]
[]
[]
[]
[]
[]
[]
[]
[]
[]
[]
[]
[]
[]
[]
[]
[]
[]
[]
[]
[]
[]
[]
[]
[]
[]
[]
[]
[]
[]
[]
[]
[]
[null,null,null,null,null,null,null,"Resource","IBUS","ID"]
[null,null,null,null,null,null,null,{"$f":"RESOURCE1","v":"(Site Code)_UNIT1"},1001,"G1"]
[null,null,null,null,null,null,null,{"$f":"RESOURCE2","v":"(Site Code)_UNIT2"},1002,"G2"]
[null,null,null,null,null,null,null,{"$f":"RESOURCE3","v":"(Site Code)_UNIT3"},1003,"G3"]
[null,null,null,null,null,null,null,{"$f":"RESOURCE4","v":"(Site Code)_UNIT4"},1004,"G4"]
[null,null,null,null,null,null,null,{"$f":"RESOURCE5","v":"(Site Code)_UNIT5"},1005,"G5"]
[null,null,null,null,null,null,null,{"$f":"RESOURCE6","v":"(Site Code)_UNIT6"},1006,"G6"]

{"sheet":"GENTPJ","index":2,"n_rows":33,"n_cols":8,"rows_kept":33,"cut":false,"hidden":false,"merged":[[25,1,25,5],[26,1,26,5],[27,1,27,5]]}
[]
["<--Go back to Home page"]
[null,null,"Unit 1","Unit 2","Unit 3","Unit 4","Unit 5","Unit 6"]
[null,null,{"$f":"RESOURCE1","v":"(Site Code)_UNIT1"},{"$f":"RESOURCE2","v":"(Site Code)_UNIT2"},{"$f":"RESOURCE3","v":"(Site Code)_UNIT3"},{"$f":"RESOURCE4","v":"(Site Code)_UNIT4"},{"$f":"RESOURCE5","v":"(Site Code)_UNIT5"},{"$f":"RESOURCE6","v":"(Site Code)_UNIT6"}]
["All parameters have been entered?",null,{"$f":"IF(COUNTA(C6:C22)=0,\"\",(COUNTA(C6:C22)=17))","v":""},"","","","",""]
["Unit MVA Size","MVA"]
["d-axis OC Transient time constant","T'do"]
["Subtransient","T\"do"]
["Transient","T'qo"]
["Subtransient","T\"qo"]
["H Inertia (units:  MW-seconds / MVA)","H"]
["D speed Daping","D"]
["Direct Axis Reactance","Xd"]
["Quadrature Axis Reactance","Xq"]
["Direct Axis Transient Reactance","X'd"]
["Quadrature Axis Transient Reactance","X'q"]
["Subtransient Reactance","X\"d"]
["Subtransient Reactance","X\"q"]
["Leakage Reactance","Xl"]
["Saturation First Point","S(1.0)"]
["Saturation Second Point","S(1.2)"]
["Current Multiplier for Saturation","Kis"]
[]
[]
["For more information about the GENPTJ Model:"]
["    NERC Modeling Notification","http://www.nerc.com/comm/PC/NERCModelingNotifications/Modeling%20Notification%20%E2%80%93%20Use%20of%20GENTPJ%20Generator%20Model.pdf"]
["    PowerWorld Description of Machine Models","https://www.powerworld.com/files/GENROU-GENSAL-GENTPF-GENTPJ.pdf"]
["    Modeling of Synchronous Generators in Power System Studies","http://www.e-cigre.org/Order/download.asp?ID=CSE_006_03.pdf"]
[]
["Converting from GENROU or GENSAL to GENPTJ?"]
["This WECC whitepaper may help","https://www.wecc.biz/Administrative/Gentpj_Clean.docx"]
["    (This paper is provided simply for reference purposes.  Click Cancel on the log-in request.)"]
["WECC case study","https://www.wecc.biz/Reliability/GEN_MODEL_0316.pdf"]

{"sheet":"GENROU","index":3,"n_rows":20,"n_cols":8,"rows_kept":20,"cut":false,"hidden":false,"merged":[]}
[]
["<--Go back to Home page"]
[null,null,"Unit 1","Unit 2","Unit 3","Unit 4","Unit 5","Unit 6"]
[null,null,{"$f":"RESOURCE1","v":"(Site Code)_UNIT1"},{"$f":"RESOURCE2","v":"(Site Code)_UNIT2"},{"$f":"RESOURCE3","v":"(Site Code)_UNIT3"},{"$f":"RESOURCE4","v":"(Site Code)_UNIT4"},{"$f":"RESOURCE5","v":"(Site Code)_UNIT5"},{"$f":"RESOURCE6","v":"(Site Code)_UNIT6"}]
["All parameters have been entered?",null,{"$f":"IF(COUNTA(C6:C20)=0,\"\",(COUNTA(C6:C20)=15))","v":""},"","","","",""]
["Unit MVA Size","MVA"]
["d-axis OC Transient time constnat","T'do"]
["Subtransient","T\"do"]
["Transient","T'qo"]
["Subtransient","T\"qo"]
["H Inertia (units:  MW-seconds / MVA)","H"]
["D speed Daping","D"]
["Direct Axis Reactance","Xd"]
["Quadrature Axis Reactance","Xq"]
["Direct Axis Transient Reactance","X'd"]
["Quadrature Axis Transient Reactance","X'q"]
["Subtransient Reactance","X\"d = X\"q"]
["Leakage Reactance","Xl"]
["Saturation First Point","S(1.0)"]
["Saturation Second Point","S(1.2)"]

{"sheet":"GENROE","index":4,"n_rows":20,"n_cols":8,"rows_kept":20,"cut":false,"hidden":false,"merged":[]}
[]
["<--Go back to Home page"]
[null,null,"Unit 1","Unit 2","Unit 3","Unit 4","Unit 5","Unit 6"]
[null,null,{"$f":"RESOURCE1","v":"(Site Code)_UNIT1"},{"$f":"RESOURCE2","v":"(Site Code)_UNIT2"},{"$f":"RESOURCE3","v":"(Site Code)_UNIT3"},{"$f":"RESOURCE4","v":"(Site Code)_UNIT4"},{"$f":"RESOURCE5","v":"(Site Code)_UNIT5"},{"$f":"RESOURCE6","v":"(Site Code)_UNIT6"}]
["All parameters have been entered?",null,{"$f":"IF(COUNTA(C6:C20)=0,\"\",(COUNTA(C6:C20)=15))","v":""},"","","","",""]
["Unit MVA Size","MVA"]
["d-axis OC Transient time constnat","T'do"]
["Subtransient","T\"do"]
["Transient","T'qo"]
["Subtransient","T\"qo"]
["H Inertia (units:  MW-seconds / MVA)","H"]
["D speed Daping","D"]
["Direct Axis Reactance","Xd"]
["Quadrature Axis Reactance","Xq"]
["Direct Axis Transient Reactance","X'd"]
["Quadrature Axis Transient Reactance","X'q"]
["Subtransient Reactance","X\"d = X\"q"]
["Leakage Reactance","Xl"]
["Saturation First Point","S(1.0)"]
["Saturation Second Point","S(1.2)"]

{"sheet":"GENSAL","index":5,"n_rows":18,"n_cols":8,"rows_kept":18,"cut":false,"hidden":false,"merged":[]}
[]
["<--Go back to Home page"]
[null,null,"Unit 1","Unit 2","Unit 3","Unit 4","Unit 5","Unit 6"]
[null,null,{"$f":"RESOURCE1","v":"(Site Code)_UNIT1"},{"$f":"RESOURCE2","v":"(Site Code)_UNIT2"},{"$f":"RESOURCE3","v":"(Site Code)_UNIT3"},{"$f":"RESOURCE4","v":"(Site Code)_UNIT4"},{"$f":"RESOURCE5","v":"(Site Code)_UNIT5"},{"$f":"RESOURCE6","v":"(Site Code)_UNIT6"}]
["All parameters have been entered?",null,{"$f":"IF(COUNTA(C6:C18)=0,\"\",(COUNTA(C6:C18)=13))","v":""},"","","","",""]
["Unit MVA Size","MVA"]
["d-axis OC Transient time constnat","T'do"]
["Subtransient","T\"do"]
["Subtransient","T\"qo"]
["H Inertia (units:  MW-seconds / MVA)","H"]
["D speed Daping","D"]
["Direct Axis Reactance","Xd"]
["Quadrature Axis Reactance","Xq"]
["Direct Axis Transient Reactance","X'd"]
["Subtransient Reactance","X\"d = X\"q"]
["Leakage Reactance","Xl"]
["Saturation First Point","S(1.0)"]
["Saturation Second Point","S(1.2)"]

{"sheet":"GENSAE","index":6,"n_rows":18,"n_cols":8,"rows_kept":18,"cut":false,"hidden":false,"merged":[]}
[]
["<--Go back to Home page"]
[null,null,"Unit 1","Unit 2","Unit 3","Unit 4","Unit 5","Unit 6"]
[null,null,{"$f":"RESOURCE1","v":"(Site Code)_UNIT1"},{"$f":"RESOURCE2","v":"(Site Code)_UNIT2"},{"$f":"RESOURCE3","v":"(Site Code)_UNIT3"},{"$f":"RESOURCE4","v":"(Site Code)_UNIT4"},{"$f":"RESOURCE5","v":"(Site Code)_UNIT5"},{"$f":"RESOURCE6","v":"(Site Code)_UNIT6"}]
["All parameters have been entered?",null,{"$f":"IF(COUNTA(C6:C18)=0,\"\",(COUNTA(C6:C18)=13))","v":""},"","","","",""]
["Unit MVA Size","MVA"]
["d-axis OC Transient time constnat","T'do"]
["Subtransient","T\"do"]
["Subtransient","T\"qo"]
["H Inertia (units:  MW-seconds / MVA)","H"]
["D speed Daping","D"]
["Direct Axis Reactance","Xd"]
["Quadrature Axis Reactance","Xq"]
["Direct Axis Transient Reactance","X'd"]
["Subtransient Reactance","X\"d = X\"q"]
["Leakage Reactance","Xl"]
["Saturation First Point","S(1.0)"]
["Saturation Second Point","S(1.2)"]

{"sheet":"EX_AC7B","index":7,"n_rows":33,"n_cols":8,"rows_kept":33,"cut":false,"hidden":false,"merged":[]}
[]
["<--Go back to Home page"]
[null,null,"Unit 1","Unit 2","Unit 3","Unit 4","Unit 5","Unit 6"]
[null,null,{"$f":"RESOURCE1","v":"(Site Code)_UNIT1"},{"$f":"RESOURCE2","v":"(Site Code)_UNIT2"},{"$f":"RESOURCE3","v":"(Site Code)_UNIT3"},{"$f":"RESOURCE4","v":"(Site Code)_UNIT4"},{"$f":"RESOURCE5","v":"(Site Code)_UNIT5"},{"$f":"RESOURCE6","v":"(Site Code)_UNIT6"}]
["All parameters have been entered?",null,{"$f":"IF(COUNTA(C7:C33)=0,\"\",(COUNTA(C7:C33)=27))","v":""},"","","","",""]
[]
["TR regulator input filter time constant (sec)","TR"]
["KPR (pu) regulator proportional gain","KPR"]
["KIR (pu) regulator integral gain","KIR"]
["KDR (pu) regulator derivative gain","KDR"]
["TDR (sec) regulator derivative block time constant","TDR"]
["VRMAX (pu) regulator output maximum limit","VRMAX"]
["VRMIN (pu) regulator output minimum limit","VRMIN"]
["KPA (pu) voltage regulator proportional gain","KPA"]
["KIA (pu) voltage regulator integral gain","KIA"]
["VAMAX (pu) regulator output maximum limit","VAMAX"]
["VAMIN (pu) regulator output minimum limit","VAMIN"]
["KP parameter","KP"]
["KL parameter","KL"]
["KF1 parameter","KF1"]
["KF2 parameter","KF2"]
["KF3 parameter","KF3"]
["TF3 parameter","TF3"]
["Rectifier loading factor porportional commutating reactance","KC"]
["demagnetizing factor","KD"]
["exciter constant for self-excited field","KE"]
["exciter time constant","TE"]
["exciter field current limit","VFEMAX"]
[null,"VEMIN"]
[null,"E1"]
[null,"S(E1)"]
[null,"E2"]
[null,"S(E2)"]

{"sheet":"EX_AC8B","index":8,"n_rows":27,"n_cols":8,"rows_kept":27,"cut":false,"hidden":false,"merged":[]}
[]
["<--Go back to Home page"]
[null,null,"Unit 1","Unit 2","Unit 3","Unit 4","Unit 5","Unit 6"]
[null,null,{"$f":"RESOURCE1","v":"(Site Code)_UNIT1"},{"$f":"RESOURCE2","v":"(Site Code)_UNIT2"},{"$f":"RESOURCE3","v":"(Site Code)_UNIT3"},{"$f":"RESOURCE4","v":"(Site Code)_UNIT4"},{"$f":"RESOURCE5","v":"(Site Code)_UNIT5"},{"$f":"RESOURCE6","v":"(Site Code)_UNIT6"}]
["All parameters have been entered?",null,{"$f":"IF(COUNTA(C7:C27)=0,\"\",(COUNTA(C7:C27)=21))","v":""},"","","","",""]
[]
["TR regulator input filter time constant (sec)","TR"]
["KPR (pu) regulator proportional gain","KPR"]
["KIR (pu) regulator integral gain","KIR"]
["KDR (pu) regulator derivative gain","KDR"]
["TDR (sec) regulator derivative block time constant","TDR"]
["PID maximum limit (pu)","VPIDMAX"]
["PID minimum limit (pu)","VPIDMIN"]
["KA (pu) voltage regulator proportional gain","KA"]
["TA (pu) voltage regulator time const","TA"]
["VRMAX (pu) regulator output maximum limit","VRMAX"]
["VRMIN (pu) regulator output minimum limit","VRMIN"]
["KC rectifier loading factor proportional to commutating reactance","KC"]
["KD demagnetizing factor; function of AC exciter reactances","KD"]
["KE exciter constant related to self-excited field","KE"]
["exciter time constant","TE"]
["exciter field current limit","VFEMAX"]
[null,"VEMIN"]
[null,"E1"]
[null,"S(E1)"]
[null,"E2"]
[null,"S(E2)"]

{"sheet":"EX_ESAC1A","index":9,"n_rows":25,"n_cols":8,"rows_kept":25,"cut":false,"hidden":false,"merged":[]}
[]
["<--Go back to Home page"]
[null,null,"Unit 1","Unit 2","Unit 3","Unit 4","Unit 5","Unit 6"]
[null,null,{"$f":"RESOURCE1","v":"(Site Code)_UNIT1"},{"$f":"RESOURCE2","v":"(Site Code)_UNIT2"},{"$f":"RESOURCE3","v":"(Site Code)_UNIT3"},{"$f":"RESOURCE4","v":"(Site Code)_UNIT4"},{"$f":"RESOURCE5","v":"(Site Code)_UNIT5"},{"$f":"RESOURCE6","v":"(Site Code)_UNIT6"}]
["All parameters have been entered?",null,{"$f":"IF(COUNTA(C7:C25)=0,\"\",(COUNTA(C7:C25)=19))","v":""},"","","","",""]
[]
["TR regulator input filter time constant (sec)","TR"]
[null,"TB"]
[null,"TC"]
["KA (pu) voltage regulator proportional gain","KA"]
["TA (pu) voltage regulator time const","TA"]
["regulator input maximum limit","VAMAX"]
["regulator input minimum limit","VAMIN"]
["exciter time constant","TE"]
[null,"KF"]
[null,"TF"]
["KC rectifier loading factor proportional to commutating reactance","KC"]
["KD demagnetizing factor; function of AC exciter reactances","KD"]
["KE exciter constant related to self-excited field","KE"]
[null,"E1"]
[null,"SE(E1)"]
[null,"E2"]
[null,"SE(E2)"]
["VRMAX (pu) regulator output maximum limit","VRMAX"]
["VRMIN (pu) regulator output minimum limit","VRMIN"]

{"sheet":"EX_ESAC2A","index":10,"n_rows":28,"n_cols":8,"rows_kept":28,"cut":false,"hidden":false,"merged":[]}
[]
["<--Go back to Home page"]
[null,null,"Unit 1","Unit 2","Unit 3","Unit 4","Unit 5","Unit 6"]
[null,null,{"$f":"RESOURCE1","v":"(Site Code)_UNIT1"},{"$f":"RESOURCE2","v":"(Site Code)_UNIT2"},{"$f":"RESOURCE3","v":"(Site Code)_UNIT3"},{"$f":"RESOURCE4","v":"(Site Code)_UNIT4"},{"$f":"RESOURCE5","v":"(Site Code)_UNIT5"},{"$f":"RESOURCE6","v":"(Site Code)_UNIT6"}]
["All parameters have been entered?",null,{"$f":"IF(COUNTA(C7:C28)=0,\"\",(COUNTA(C7:C28)=22))","v":""},"","","","",""]
[]
["TR regulator input filter time constant (sec)","TR"]
[null,"TB"]
[null,"TC"]
["KA (pu) voltage regulator proportional gain","KA"]
["TA (pu) voltage regulator time const","TA"]
["regulator input maximum limit","VAMAX"]
["regulator input minimum limit","VAMIN"]
[null,"KB"]
["VRMAX (pu) regulator output maximum limit","VRMAX"]
["VRMIN (pu) regulator output minimum limit","VRMIN"]
["exciter time constant","TE"]
["exciter field current limit","VFEMAX"]
[null,"KH"]
[null,"KF"]
[null,"TF"]
["KC rectifier loading factor proportional to commutating reactance","KC"]
["KD demagnetizing factor; function of AC exciter reactances","KD"]
["KE exciter constant related to self-excited field","KE"]
[null,"E1"]
[null,"SE(E1)"]
[null,"E2"]
[null,"SE(E2)"]

{"sheet":"EX_ESAC3A","index":11,"n_rows":28,"n_cols":8,"rows_kept":28,"cut":false,"hidden":false,"merged":[]}
[]
["<--Go back to Home page"]
[null,null,"Unit 1","Unit 2","Unit 3","Unit 4","Unit 5","Unit 6"]
[null,null,{"$f":"RESOURCE1","v":"(Site Code)_UNIT1"},{"$f":"RESOURCE2","v":"(Site Code)_UNIT2"},{"$f":"RESOURCE3","v":"(Site Code)_UNIT3"},{"$f":"RESOURCE4","v":"(Site Code)_UNIT4"},{"$f":"RESOURCE5","v":"(Site Code)_UNIT5"},{"$f":"RESOURCE6","v":"(Site Code)_UNIT6"}]
["All parameters have been entered?",null,{"$f":"IF(COUNTA(C7:C28)=0,\"\",(COUNTA(C7:C28)=22))","v":""},"","","","",""]
[]
["TR regulator input filter time constant (sec)","TR"]
[null,"TB"]
[null,"TC"]
["KA (pu) voltage regulator proportional gain","KA"]
["TA (pu) voltage regulator time const","TA"]
["regulator input maximum limit","VAMAX"]
["regulator input minimum limit","VAMIN"]
["exciter time constant","TE"]
[null,"VEMIN"]
[null,"KR"]
[null,"KF"]
[null,"TF"]
[null,"KN"]
[null,"EFDN"]
["KC rectifier loading factor proportional to commutating reactance","KC"]
["KD demagnetizing factor; function of AC exciter reactances","KD"]
["KE exciter constant related to self-excited field","KE"]
["exciter field current limit","VFEMAX"]
[null,"E1"]
[null,"SE(E1)"]
[null,"E2"]
[null,"SE(E2)"]

{"sheet":"EX_ESAC5A","index":12,"n_rows":21,"n_cols":8,"rows_kept":21,"cut":false,"hidden":false,"merged":[]}
[]
["<--Go back to Home page"]
[null,null,"Unit 1","Unit 2","Unit 3","Unit 4","Unit 5","Unit 6"]
[null,null,{"$f":"RESOURCE1","v":"(Site Code)_UNIT1"},{"$f":"RESOURCE2","v":"(Site Code)_UNIT2"},{"$f":"RESOURCE3","v":"(Site Code)_UNIT3"},{"$f":"RESOURCE4","v":"(Site Code)_UNIT4"},{"$f":"RESOURCE5","v":"(Site Code)_UNIT5"},{"$f":"RESOURCE6","v":"(Site Code)_UNIT6"}]
["All parameters have been entered?",null,{"$f":"IF(COUNTA(C7:C21)=0,\"\",(COUNTA(C7:C21)=15))","v":""},"","","","",""]
[]
["TR regulator input filter time constant (sec)","TR"]
["KA (pu) voltage regulator proportional gain","KA"]
["TA (pu) voltage regulator time const","TA"]
["regulator output maximum limit (or zero)","VRMAX"]
["regulator output minimum limit","VRMIN"]
["KE or zero","KE"]
[null,"TE"]
[null,"KF"]
[null,"TF1"]
[null,"TF2"]
[null,"TF3"]
[null,"E1"]
[null,"SE(E1)"]
[null,"E2"]
[null,"SE(E2)"]

{"sheet":"EX_ESAC8B","index":13,"n_rows":20,"n_cols":8,"rows_kept":20,"cut":false,"hidden":false,"merged":[]}
[]
["<--Go back to Home page"]
[null,null,"Unit 1","Unit 2","Unit 3","Unit 4","Unit 5","Unit 6"]
[null,null,{"$f":"RESOURCE1","v":"(Site Code)_UNIT1"},{"$f":"RESOURCE2","v":"(Site Code)_UNIT2"},{"$f":"RESOURCE3","v":"(Site Code)_UNIT3"},{"$f":"RESOURCE4","v":"(Site Code)_UNIT4"},{"$f":"RESOURCE5","v":"(Site Code)_UNIT5"},{"$f":"RESOURCE6","v":"(Site Code)_UNIT6"}]
["All parameters have been entered?",null,{"$f":"IF(COUNTA(C7:C20)=0,\"\",(COUNTA(C7:C20)=14))","v":""},"","","","",""]
[]
["TR regulator input filter time constant (sec)","TR"]
[null,"KP"]
[null,"KI"]
[null,"KD"]
[null,"TD"]
[null,"KA"]
[null,"TA"]
["regulator output maximum limit (or zero)","VRMAX"]
["regulator output minimum limit","VRMIN"]
[null,"TE"]
[null,"E1"]
[null,"SE(E1)"]
[null,"E2"]
[null,"SE(E2)"]

{"sheet":"EX_ESST1A","index":14,"n_rows":26,"n_cols":8,"rows_kept":26,"cut":false,"hidden":false,"merged":[]}
[]
["<--Go back to Home page"]
["UNITS (treated as a comment)",null,"Unit 1","Unit 2 (if present)","Unit 3 (if present)","Unit 4 (if present)","Unit 5 (if present)","Unit 6 (if present)"]
["SITE CODE (Filled from Home Page)",null,{"$f":"RESOURCE1","v":"(Site Code)_UNIT1"},{"$f":"RESOURCE2","v":"(Site Code)_UNIT2"},{"$f":"RESOURCE3","v":"(Site Code)_UNIT3"},{"$f":"RESOURCE4","v":"(Site Code)_UNIT4"},{"$f":"RESOURCE5","v":"(Site Code)_UNIT5"},{"$f":"RESOURCE6","v":"(Site Code)_UNIT6"}]
["All parameters have been entered?",null,{"$f":"IF(COUNTA(C7:C26)=0,\"\",(COUNTA(C7:C26)=20))","v":""},"","","","",""]
[]
["VUEL flag set to 1,2, or 3","UEL"]
["VOS flag set to 1 or 2","VOS"]
["TR regulator input filter time constant (sec)","TR"]
["Input voltage limit","VIMAX"]
["Input voltage limit","VIMIN"]
["First lead/lag numerator time const (sec)","TC"]
["First lead/lag pole time const (sec)","TB"]
["Second lead/lag numerator time const (sec)","TC1"]
["Second lead/lag pole time const (sec)","TB1"]
["Low pass proportional gain","KA"]
["Low pass time constant (sec)","TA"]
["KA-TA filter output limit","VAMAX"]
["KA-TA filter output limit","VAMIN"]
["Final field limit","VRMAX"]
["Final field limit","VRMIN"]
["Field limiter gain","KC"]
["Feedback proportional gain","KF"]
["Feedback time constant","TF"]
[null,"KLR"]
[null,"ILR"]

{"sheet":"EX_ESST2A","index":15,"n_rows":19,"n_cols":8,"rows_kept":19,"cut":false,"hidden":false,"merged":[]}
[]
["<--Go back to Home page"]
["UNITS (treated as a comment)",null,"Unit 1","Unit 2 (if present)","Unit 3 (if present)","Unit 4 (if present)","Unit 5 (if present)","Unit 6 (if present)"]
["SITE CODE (Filled from Home Page)",null,{"$f":"RESOURCE1","v":"(Site Code)_UNIT1"},{"$f":"RESOURCE2","v":"(Site Code)_UNIT2"},{"$f":"RESOURCE3","v":"(Site Code)_UNIT3"},{"$f":"RESOURCE4","v":"(Site Code)_UNIT4"},{"$f":"RESOURCE5","v":"(Site Code)_UNIT5"},{"$f":"RESOURCE6","v":"(Site Code)_UNIT6"}]
["All parameters have been entered?",null,{"$f":"IF(COUNTA(C7:C19)=0,\"\",(COUNTA(C7:C19)=13))","v":""},{"$f":"IF(COUNTA(D8:D19)=0,\"\",(COUNTA(D8:D19)=13))","v":""},{"$f":"IF(COUNTA(E8:E19)=0,\"\",(COUNTA(E8:E19)=13))","v":""},{"$f":"IF(COUNTA(F8:F19)=0,\"\",(COUNTA(F8:F19)=13))","v":""},{"$f":"IF(COUNTA(G8:G19)=0,\"\",(COUNTA(G8:G19)=13))","v":""},{"$f":"IF(COUNTA(H8:H19)=0,\"\",(COUNTA(H8:H19)=13))","v":""}]
[]
[null,"TR"]
[null,"KA"]
[null,"TA"]
[null,"VRMAX"]
[null,"VRMIN"]
[null,"KE"]
[null,"TE"]
[null,"KF"]
[null,"TF"]
[null,"KP"]
[null,"KI"]
[null,"KC"]
[null,"EFDMAX"]

{"sheet":"EX_ESST3A","index":16,"n_rows":27,"n_cols":8,"rows_kept":27,"cut":false,"hidden":false,"merged":[]}
[]
["<--Go back to Home page"]
["UNITS (treated as a comment)",null,"Unit 1","Unit 2 (if present)","Unit 3 (if present)","Unit 4 (if present)","Unit 5 (if present)","Unit 6 (if present)"]
["SITE CODE (Filled from Home Page)",null,{"$f":"RESOURCE1","v":"(Site Code)_UNIT1"},{"$f":"RESOURCE2","v":"(Site Code)_UNIT2"},{"$f":"RESOURCE3","v":"(Site Code)_UNIT3"},{"$f":"RESOURCE4","v":"(Site Code)_UNIT4"},{"$f":"RESOURCE5","v":"(Site Code)_UNIT5"},{"$f":"RESOURCE6","v":"(Site Code)_UNIT6"}]
["All parameters have been entered?",null,{"$f":"IF(COUNTA(C7:C27)=0,\"\",(COUNTA(C7:C27)=21))","v":""},"","","","",""]
[]
[null,"TR"]
[null,"VIMAX"]
[null,"VIMIN"]
[null,"KM"]
[null,"TC"]
[null,"TB"]
[null,"KA"]
[null,"TA"]
[null,"VRMAX"]
[null,"VRMIN"]
[null,"KG"]
[null,"KP"]
[null,"KI"]
[null,"VBMAX"]
[null,"KC"]
[null,"XL"]
[null,"VGMAX"]
["(degrees)","θρ"]
[null,"TM"]
[null,"VMMAX"]
[null,"VMMIN"]

{"sheet":"EX_ESST4B","index":17,"n_rows":23,"n_cols":8,"rows_kept":23,"cut":false,"hidden":false,"merged":[]}
[]
["<--Go back to Home page"]
["UNITS (treated as a comment)",null,"Unit 1","Unit 2 (if present)","Unit 3 (if present)","Unit 4 (if present)","Unit 5 (if present)","Unit 6 (if present)"]
["SITE CODE (Filled from Home Page)",null,{"$f":"RESOURCE1","v":"(Site Code)_UNIT1"},{"$f":"RESOURCE2","v":"(Site Code)_UNIT2"},{"$f":"RESOURCE3","v":"(Site Code)_UNIT3"},{"$f":"RESOURCE4","v":"(Site Code)_UNIT4"},{"$f":"RESOURCE5","v":"(Site Code)_UNIT5"},{"$f":"RESOURCE6","v":"(Site Code)_UNIT6"}]
["All parameters have been entered?",null,{"$f":"IF(COUNTA(C7:C23)=0,\"\",(COUNTA(C7:C23)=17))","v":""},{"$f":"IF(COUNTA(D7:D23)=0,\"\",(COUNTA(D7:D23)=17))","v":""},"","","",""]
[]
[null,"TR"]
[null,"KPR"]
[null,"KIR"]
[null,"VRMAX"]
[null,"VRMIN"]
[null,"TA"]
[null,"KPM"]
[null,"KIM"]
[null,"VMMAX"]
[null,"VMMIN"]
[null,"KG"]
[null,"KP"]
[null,"KI"]
[null,"VBMAX"]
[null,"KC"]
[null,"XL"]
[null,"ThetaP"]

{"sheet":"EX_ESDC1A","index":18,"n_rows":22,"n_cols":8,"rows_kept":22,"cut":false,"hidden":false,"merged":[]}
[]
["<--Go back to Home page"]
[null,null,"Unit 1","Unit 2","Unit 3","Unit 4","Unit 5","Unit 6"]
[null,null,{"$f":"RESOURCE1","v":"(Site Code)_UNIT1"},{"$f":"RESOURCE2","v":"(Site Code)_UNIT2"},{"$f":"RESOURCE3","v":"(Site Code)_UNIT3"},{"$f":"RESOURCE4","v":"(Site Code)_UNIT4"},{"$f":"RESOURCE5","v":"(Site Code)_UNIT5"},{"$f":"RESOURCE6","v":"(Site Code)_UNIT6"}]
["All parameters have been entered?",null,{"$f":"IF(COUNTA(C7:C22)=0,\"\",(COUNTA(C7:C22)=16))","v":""},"","","","",""]
[]
["TR regulator input filter time constant (sec)","TR"]
[null,"KA"]
[null,"TA"]
["KA (pu) voltage regulator proportional gain","TB"]
["TA (pu) voltage regulator time const","TC"]
["regulator input maximum limit","VRMAX"]
["regulator input minimum limit","VRMIN"]
["exciter time constant","KE"]
[null,"TE"]
[null,"KF"]
[null,"TF1"]
[null,"Switch"]
["Exciter flux at knee of curve","E1"]
["Saturation factor at knee of curve","SE(E1)"]
["Maximum exciterflux","E2"]
["Saturation factor at maximum exciter flux","SE(E2)"]

{"sheet":"EX_EX2000","index":19,"n_rows":55,"n_cols":8,"rows_kept":55,"cut":false,"hidden":false,"merged":[]}
[]
["<--Go back to Home page"]
["UNITS (treated as a comment)",null,"Unit 1","Unit 2 (if present)","Unit 3 (if present)","Unit 4 (if present)","Unit 5 (if present)","Unit 6 (if present)"]
["SITE CODE (Filled from Home Page)",null,{"$f":"RESOURCE1","v":"(Site Code)_UNIT1"},{"$f":"RESOURCE2","v":"(Site Code)_UNIT2"},{"$f":"RESOURCE3","v":"(Site Code)_UNIT3"},{"$f":"RESOURCE4","v":"(Site Code)_UNIT4"},{"$f":"RESOURCE5","v":"(Site Code)_UNIT5"},{"$f":"RESOURCE6","v":"(Site Code)_UNIT6"}]
["All parameters have been entered?",null,{"$f":"IF(COUNTA(C7:C55)=0,\"\",(COUNTA(C7:C55)=49))","v":""},{"$f":"IF(COUNTA(D7:D55)=0,\"\",(COUNTA(D7:D55)=49))","v":""},"","","",""]
[]
["0=Field current limiter excluded \n    (upper limit VEMAX is applied)\n1=Field current limiter included\n    (upper limit VEMAX is off)","FCL"]
["0=Min Gate 2 is excluded\n1=Min Gate 2 is included","MinGate"]
["Latch Gate 1 signal (0 or 1)","Memory"]
["Field Current Limiter Timer is (0=not active, 1=active)","FCLT"]
["Proportional Gain","KPR"]
["Integral Gain","KIR"]
[null,"VRMAX"]
[null,"VRMIN"]
[null,"KPA"]
[null,"KIA"]
[null,"VAMAX"]
[null,"VAMIN"]
[null,"KP"]
[null,"KL"]
["Exciter field time const (sec > 0)","TE"]
["Exciter field maximum output","VFEMAX"]
["Exciter field proportional const","KE"]
["Rectifier regulation factor","KC"]
[null,"KD"]
[null,"KF1"]
[null,"KF2"]
["Exciter flux at knee of curve","E1"]
["Saturation factor at knee of curve","SE(E1)"]
["Maximum exciterflux","E2"]
["Saturation factor at maximum exciter flux","SE(E2)"]
["Volts/Hz gain","KVHZ"]
["Volt/reactive current gain","KRCC"]
["Voltage transducer time const (sec)","TR"]
["Field current 1st reference","IFDREF1"]
["Field current 2nd reference","IFDREF2"]
["Field current 3rd reference","IFDREF3"]
["Field current 4th reference","IFDREF4"]
[null,"I1"]
[null,"T1"]
[null,"I2"]
[null,"T2"]
[null,"I3"]
[null,"T3"]
[null,"I4"]
[null,"T4"]
["Field current limiter time const (sec)","TLEAD"]
["Field current limiter time const (sec)","TLAG"]
[null,"KPIFD"]
[null,"KIIFD"]
[null,"IFDLIMP"]
[null,"IFDLIMN"]
["Advance field current limit","IFDADVLIM"]
["Exciter field minimum output","VEMIN"]
["Voltage reference signal limit","REFLIMP"]

{"sheet":"EX_EXAC1","index":20,"n_rows":23,"n_cols":8,"rows_kept":23,"cut":false,"hidden":false,"merged":[]}
[]
["<--Go back to Home page"]
[null,null,"Unit 1","Unit 2","Unit 3","Unit 4","Unit 5","Unit 6"]
[null,null,{"$f":"RESOURCE1","v":"(Site Code)_UNIT1"},{"$f":"RESOURCE2","v":"(Site Code)_UNIT2"},{"$f":"RESOURCE3","v":"(Site Code)_UNIT3"},{"$f":"RESOURCE4","v":"(Site Code)_UNIT4"},{"$f":"RESOURCE5","v":"(Site Code)_UNIT5"},{"$f":"RESOURCE6","v":"(Site Code)_UNIT6"}]
["All parameters have been entered?",null,{"$f":"IF(COUNTA(C7:C23)=0,\"\",(COUNTA(C7:C23)=17))","v":""},{"$f":"IF(COUNTA(D7:D23)=0,\"\",(COUNTA(D7:D23)=17))","v":""},"","","",""]
[]
["TR regulator input filter time constant (sec)","TR"]
[null,"TB"]
[null,"TC"]
["KA (pu) voltage regulator proportional gain","KA"]
["TA (pu) voltage regulator time const","TA"]
["regulator input maximum limit","VRMAX"]
["regulator input minimum limit","VRMIN"]
["exciter time constant","TE"]
[null,"KF"]
[null,"TF"]
["KC rectifier loading factor proportional to commutating reactance","KC"]
["KD demagnetizing factor; function of AC exciter reactances","KD"]
["KE exciter constant related to self-excited field","KE"]
[null,"E1"]
[null,"SE(E1)"]
[null,"E2"]
[null,"SE(E2)"]

{"sheet":"EX_EXAC2","index":21,"n_rows":29,"n_cols":8,"rows_kept":29,"cut":false,"hidden":false,"merged":[]}
[]
["<--Go back to Home page"]
[null,null,"Unit 1","Unit 2","Unit 3","Unit 4","Unit 5","Unit 6"]
[null,null,{"$f":"RESOURCE1","v":"(Site Code)_UNIT1"},{"$f":"RESOURCE2","v":"(Site Code)_UNIT2"},{"$f":"RESOURCE3","v":"(Site Code)_UNIT3"},{"$f":"RESOURCE4","v":"(Site Code)_UNIT4"},{"$f":"RESOURCE5","v":"(Site Code)_UNIT5"},{"$f":"RESOURCE6","v":"(Site Code)_UNIT6"}]
["All parameters have been entered?",null,{"$f":"IF(COUNTA(C7:C29)=0,\"\",(COUNTA(C7:C29)=23))","v":""},{"$f":"IF(COUNTA(D7:D29)=0,\"\",(COUNTA(D7:D29)=23))","v":""},"","","",""]
[]
["TR regulator input filter time constant (sec)","TR"]
[null,"TB"]
[null,"TC"]
["KA (pu) voltage regulator proportional gain","KA"]
["TA (pu) voltage regulator time const","TA"]
["regulator input maximum limit","VAMAX"]
["regulator input minimum limit","VAMIN"]
[null,"KB"]
["VRMAX (pu) regulator output maximum limit","VRMAX"]
["VRMIN (pu) regulator output minimum limit","VRMIN"]
["exciter time constant","TE"]
["exciter field current limit","VL"]
[null,"KH"]
[null,"KF"]
[null,"TF"]
["KC rectifier loading factor proportional to commutating reactance","KC"]
["KD demagnetizing factor; function of AC exciter reactances","KD"]
["KE exciter constant related to self-excited field","KE"]
[null,"VLR"]
[null,"E1"]
[null,"SE(E1)"]
[null,"E2"]
[null,"SE(E2)"]

{"sheet":"EX_EXAC3","index":22,"n_rows":28,"n_cols":8,"rows_kept":28,"cut":false,"hidden":false,"merged":[]}
[]
["<--Go back to Home page"]
[null,null,"Unit 1","Unit 2","Unit 3","Unit 4","Unit 5","Unit 6"]
[null,null,{"$f":"RESOURCE1","v":"(Site Code)_UNIT1"},{"$f":"RESOURCE2","v":"(Site Code)_UNIT2"},{"$f":"RESOURCE3","v":"(Site Code)_UNIT3"},{"$f":"RESOURCE4","v":"(Site Code)_UNIT4"},{"$f":"RESOURCE5","v":"(Site Code)_UNIT5"},{"$f":"RESOURCE6","v":"(Site Code)_UNIT6"}]
["All parameters have been entered?",null,{"$f":"IF(COUNTA(C7:C28)=0,\"\",(COUNTA(C7:C28)=22))","v":""},"","","","",""]
[]
["TR regulator input filter time constant (sec)","TR"]
[null,"TB"]
[null,"TC"]
["KA (pu) voltage regulator proportional gain","KA"]
["TA (pu) voltage regulator time const","TA"]
["regulator input maximum limit","VAMAX"]
["regulator input minimum limit","VAMIN"]
["exciter time constant","TE"]
[null,"KLV"]
[null,"KR"]
[null,"KF"]
[null,"TF"]
[null,"KN"]
[null,"EFDN"]
["KC rectifier loading factor proportional to commutating reactance","KC"]
["KD demagnetizing factor; function of AC exciter reactances","KD"]
["KE exciter constant related to self-excited field","KE"]
["exciter field current limit","VLV"]
[null,"E1"]
[null,"SE(E1)"]
[null,"E2"]
[null,"SE(E2)"]

{"sheet":"EX_EXAC4","index":23,"n_rows":16,"n_cols":8,"rows_kept":16,"cut":false,"hidden":false,"merged":[]}
[]
["<--Go back to Home page"]
["UNITS (treated as a comment)",null,"Unit 1","Unit 2 (if present)","Unit 3 (if present)","Unit 4 (if present)","Unit 5 (if present)","Unit 6 (if present)"]
["SITE CODE (Filled from Home Page)",null,{"$f":"RESOURCE1","v":"(Site Code)_UNIT1"},{"$f":"RESOURCE2","v":"(Site Code)_UNIT2"},{"$f":"RESOURCE3","v":"(Site Code)_UNIT3"},{"$f":"RESOURCE4","v":"(Site Code)_UNIT4"},{"$f":"RESOURCE5","v":"(Site Code)_UNIT5"},{"$f":"RESOURCE6","v":"(Site Code)_UNIT6"}]
["All parameters have been entered?",null,{"$f":"IF(COUNTA(C7:C16)=0,\"\",(COUNTA(C7:C16)=10))","v":""},{"$f":"IF(COUNTA(D7:D16)=0,\"\",(COUNTA(D7:D16)=10))","v":""},"","","",""]
[]
[null,"TR"]
[null,"VIMAX"]
[null,"VIMIN"]
[null,"TC"]
[null,"TB"]
[null,"KA"]
[null,"TA"]
[null,"VRMAX"]
[null,"VRMIN"]
[null,"KC"]

{"sheet":"EX_EXDC2","index":24,"n_rows":22,"n_cols":8,"rows_kept":22,"cut":false,"hidden":false,"merged":[]}
[]
["<--Go back to Home page"]
[null,null,"Unit 1","Unit 2","Unit 3","Unit 4","Unit 5","Unit 6"]
[null,null,{"$f":"RESOURCE1","v":"(Site Code)_UNIT1"},{"$f":"RESOURCE2","v":"(Site Code)_UNIT2"},{"$f":"RESOURCE3","v":"(Site Code)_UNIT3"},{"$f":"RESOURCE4","v":"(Site Code)_UNIT4"},{"$f":"RESOURCE5","v":"(Site Code)_UNIT5"},{"$f":"RESOURCE6","v":"(Site Code)_UNIT6"}]
["All parameters have been entered?",null,{"$f":"IF(COUNTA(C7:C22)=0,\"\",(COUNTA(C7:C22)=16))","v":""},"","","","",""]
[]
["TR regulator input filter time constant (sec)","TR"]
[null,"KA"]
[null,"TA"]
["KA (pu) voltage regulator proportional gain","TB"]
["TA (pu) voltage regulator time const","TC"]
["regulator input maximum limit","VRMAX"]
["regulator input minimum limit","VRMIN"]
["exciter time constant","KE"]
[null,"TE"]
[null,"KF"]
[null,"TF1"]
[null,"Switch"]
["Exciter flux at knee of curve","E1"]
["Saturation factor at knee of curve","SE(E1)"]
["Maximum exciterflux","E2"]
["Saturation factor at maximum exciter flux","SE(E2)"]

{"sheet":"EX_EXPIC1","index":25,"n_rows":30,"n_cols":8,"rows_kept":30,"cut":false,"hidden":false,"merged":[]}
[]
["<--Go back to Home page"]
[null,null,"Unit 1","Unit 2","Unit 3","Unit 4","Unit 5","Unit 6"]
[null,null,{"$f":"RESOURCE1","v":"(Site Code)_UNIT1"},{"$f":"RESOURCE2","v":"(Site Code)_UNIT2"},{"$f":"RESOURCE3","v":"(Site Code)_UNIT3"},{"$f":"RESOURCE4","v":"(Site Code)_UNIT4"},{"$f":"RESOURCE5","v":"(Site Code)_UNIT5"},{"$f":"RESOURCE6","v":"(Site Code)_UNIT6"}]
["All parameters have been entered?",null,{"$f":"IF(COUNTA(C7:C30)=0,\"\",(COUNTA(C7:C30)=24))","v":""},{"$f":"IF(COUNTA(D7:D30)=0,\"\",(COUNTA(D7:D30)=24))","v":""},"","","",""]
[]
["TR regulator input filter time constant (sec)","TR"]
[null,"KA"]
[null,"TA1"]
[null,"VR1"]
[null,"VR2"]
[null,"TA2"]
[null,"TA3"]
[null,"TA4"]
["regulator input maximum limit","VRMAX"]
["regulator input minimum limit","VRMIN"]
[null,"KF"]
[null,"TF1"]
[null,"TF2"]
[null,"EFDmax"]
[null,"EFDmin"]
[null,"KE"]
[null,"TE"]
["Exciter flux at knee of curve","E1"]
["Saturation factor at knee of curve","SE(E1)"]
["Maximum exciterflux","E2"]
["Saturation factor at maximum exciter flux","SE(E2)"]
[null,"KP"]
[null,"KI"]
[null,"KC"]

{"sheet":"EX_EXST1","index":26,"n_rows":18,"n_cols":8,"rows_kept":18,"cut":false,"hidden":false,"merged":[]}
[]
["<--Go back to Home page"]
["UNITS (treated as a comment)",null,"Unit 1","Unit 2 (if present)","Unit 3 (if present)","Unit 4 (if present)","Unit 5 (if present)","Unit 6 (if present)"]
["SITE CODE (Filled from Home Page)",null,{"$f":"RESOURCE1","v":"(Site Code)_UNIT1"},{"$f":"RESOURCE2","v":"(Site Code)_UNIT2"},{"$f":"RESOURCE3","v":"(Site Code)_UNIT3"},{"$f":"RESOURCE4","v":"(Site Code)_UNIT4"},{"$f":"RESOURCE5","v":"(Site Code)_UNIT5"},{"$f":"RESOURCE6","v":"(Site Code)_UNIT6"}]
["All parameters have been entered?",null,{"$f":"IF(COUNTA(C7:C18)=0,\"\",(COUNTA(C7:C18)=12))","v":""},{"$f":"IF(COUNTA(D7:D18)=0,\"\",(COUNTA(D7:D18)=12))","v":""},"","","",""]
[]
[null,"TR"]
[null,"VIMAX"]
[null,"VIMIN"]
[null,"TC"]
[null,"TB"]
[null,"KA"]
[null,"TA"]
[null,"VRMAX"]
[null,"VRMIN"]
[null,"KC"]
[null,"KF"]
[null,"TF"]

{"sheet":"EX_EXST2","index":27,"n_rows":19,"n_cols":8,"rows_kept":19,"cut":false,"hidden":false,"merged":[]}
[]
["<--Go back to Home page"]
["UNITS (treated as a comment)",null,"Unit 1","Unit 2 (if present)","Unit 3 (if present)","Unit 4 (if present)","Unit 5 (if present)","Unit 6 (if present)"]
["SITE CODE (Filled from Home Page)",null,{"$f":"RESOURCE1","v":"(Site Code)_UNIT1"},{"$f":"RESOURCE2","v":"(Site Code)_UNIT2"},{"$f":"RESOURCE3","v":"(Site Code)_UNIT3"},{"$f":"RESOURCE4","v":"(Site Code)_UNIT4"},{"$f":"RESOURCE5","v":"(Site Code)_UNIT5"},{"$f":"RESOURCE6","v":"(Site Code)_UNIT6"}]
["All parameters have been entered?",null,{"$f":"IF(COUNTA(C7:C19)=0,\"\",(COUNTA(C7:C19)=13))","v":""},{"$f":"IF(COUNTA(D7:D19)=0,\"\",(COUNTA(D7:D19)=13))","v":""},"","","",""]
[]
[null,"TR"]
[null,"KA"]
[null,"TA"]
[null,"VRMAX"]
[null,"VRMIN"]
[null,"KE"]
[null,"TE"]
[null,"KF"]
[null,"TF"]
[null,"KP"]
[null,"KI"]
[null,"KC"]
[null,"EFDMAX"]

{"sheet":"EX_ST2A","index":28,"n_rows":19,"n_cols":8,"rows_kept":19,"cut":false,"hidden":false,"merged":[]}
[]
["<--Go back to Home page"]
["UNITS (treated as a comment)",null,"Unit 1","Unit 2 (if present)","Unit 3 (if present)","Unit 4 (if present)","Unit 5 (if present)","Unit 6 (if present)"]
["SITE CODE (Filled from Home Page)",null,{"$f":"RESOURCE1","v":"(Site Code)_UNIT1"},{"$f":"RESOURCE2","v":"(Site Code)_UNIT2"},{"$f":"RESOURCE3","v":"(Site Code)_UNIT3"},{"$f":"RESOURCE4","v":"(Site Code)_UNIT4"},{"$f":"RESOURCE5","v":"(Site Code)_UNIT5"},{"$f":"RESOURCE6","v":"(Site Code)_UNIT6"}]
["All parameters have been entered?",null,{"$f":"IF(COUNTA(C7:C19)=0,\"\",(COUNTA(C7:C19)=13))","v":""},{"$f":"IF(COUNTA(D7:D19)=0,\"\",(COUNTA(D7:D19)=13))","v":""},"","","",""]
[]
[null,"TR"]
[null,"KA"]
[null,"TA"]
[null,"VRMAX"]
[null,"VRMIN"]
[null,"KE"]
[null,"TE"]
[null,"KF"]
[null,"TF"]
[null,"KP"]
[null,"KI"]
[null,"KC"]
[null,"EFDMAX"]

{"sheet":"EX_EXST3","index":29,"n_rows":24,"n_cols":8,"rows_kept":24,"cut":false,"hidden":false,"merged":[]}
[]
["<--Go back to Home page"]
["UNITS (treated as a comment)",null,"Unit 1","Unit 2 (if present)","Unit 3 (if present)","Unit 4 (if present)","Unit 5 (if present)","Unit 6 (if present)"]
["SITE CODE (Filled from Home Page)",null,{"$f":"RESOURCE1","v":"(Site Code)_UNIT1"},{"$f":"RESOURCE2","v":"(Site Code)_UNIT2"},{"$f":"RESOURCE3","v":"(Site Code)_UNIT3"},{"$f":"RESOURCE4","v":"(Site Code)_UNIT4"},{"$f":"RESOURCE5","v":"(Site Code)_UNIT5"},{"$f":"RESOURCE6","v":"(Site Code)_UNIT6"}]
["All parameters have been entered?",null,{"$f":"IF(COUNTA(C7:C24)=0,\"\",(COUNTA(C7:C24)=18))","v":""},{"$f":"IF(COUNTA(D7:D24)=0,\"\",(COUNTA(D7:D24)=18))","v":""},"","","",""]
[]
[null,"TR"]
[null,"VIMAX"]
[null,"VIMIN"]
[null,"KJ"]
[null,"TC"]
[null,"TB"]
[null,"KA"]
[null,"TA"]
[null,"VRMAX"]
[null,"VRMIN"]
[null,"KG"]
[null,"KP"]
[null,"KI"]
[null,"EFDMAX"]
[null,"KC"]
[null,"XL"]
[null,"VGMAX"]
["(degrees)","θρ"]

{"sheet":"EX_IEEET1","index":30,"n_rows":20,"n_cols":8,"rows_kept":20,"cut":false,"hidden":false,"merged":[]}
[]
["<--Go back to Home page"]
["UNITS (treated as a comment)",null,"Unit 1","Unit 2 (if present)","Unit 3 (if present)","Unit 4 (if present)","Unit 5 (if present)","Unit 6 (if present)"]
["SITE CODE (Filled from Home Page)",null,{"$f":"RESOURCE1","v":"(Site Code)_UNIT1"},{"$f":"RESOURCE2","v":"(Site Code)_UNIT2"},{"$f":"RESOURCE3","v":"(Site Code)_UNIT3"},{"$f":"RESOURCE4","v":"(Site Code)_UNIT4"},{"$f":"RESOURCE5","v":"(Site Code)_UNIT5"},{"$f":"RESOURCE6","v":"(Site Code)_UNIT6"}]
["All parameters have been entered?",null,{"$f":"IF(COUNTA(C7:C20)=0,\"\",(COUNTA(C7:C20)=14))","v":""},{"$f":"IF(COUNTA(D7:D20)=0,\"\",(COUNTA(D7:D20)=14))","v":""},"","","",""]
[]
[null,"TR"]
[null,"KA"]
[null,"TA"]
[null,"VRMAX"]
[null,"VRMIN"]
[null,"KE"]
[null,"TE"]
[null,"KF"]
[null,"TF"]
[null,"Switch"]
[null,"E1"]
[null,"SE(E1)"]
[null,"E2"]
[null,"SE(E2)"]

{"sheet":"EX_IEEET2","index":31,"n_rows":20,"n_cols":8,"rows_kept":20,"cut":false,"hidden":false,"merged":[]}
[]
["<--Go back to Home page"]
["UNITS (treated as a comment)",null,"Unit 1","Unit 2 (if present)","Unit 3 (if present)","Unit 4 (if present)","Unit 5 (if present)","Unit 6 (if present)"]
["SITE CODE (Filled from Home Page)",null,{"$f":"RESOURCE1","v":"(Site Code)_UNIT1"},{"$f":"RESOURCE2","v":"(Site Code)_UNIT2"},{"$f":"RESOURCE3","v":"(Site Code)_UNIT3"},{"$f":"RESOURCE4","v":"(Site Code)_UNIT4"},{"$f":"RESOURCE5","v":"(Site Code)_UNIT5"},{"$f":"RESOURCE6","v":"(Site Code)_UNIT6"}]
["All parameters have been entered?",null,{"$f":"IF(COUNTA(C7:C20)=0,\"\",(COUNTA(C7:C20)=14))","v":""},"","","","",""]
[]
[null,"TR"]
[null,"KA"]
[null,"TA"]
[null,"VRMAX"]
[null,"VRMIN"]
[null,"KE"]
[null,"TE"]
[null,"KF"]
[null,"TF1"]
[null,"TF2"]
[null,"E1"]
[null,"SE(E1)"]
[null,"E2"]
[null,"SE(E2)"]

{"sheet":"EX_IEEET3","index":32,"n_rows":18,"n_cols":8,"rows_kept":18,"cut":false,"hidden":false,"merged":[]}
[]
["<--Go back to Home page"]
["UNITS (treated as a comment)",null,"Unit 1","Unit 2 (if present)","Unit 3 (if present)","Unit 4 (if present)","Unit 5 (if present)","Unit 6 (if present)"]
["SITE CODE (Filled from Home Page)",null,{"$f":"RESOURCE1","v":"(Site Code)_UNIT1"},{"$f":"RESOURCE2","v":"(Site Code)_UNIT2"},{"$f":"RESOURCE3","v":"(Site Code)_UNIT3"},{"$f":"RESOURCE4","v":"(Site Code)_UNIT4"},{"$f":"RESOURCE5","v":"(Site Code)_UNIT5"},{"$f":"RESOURCE6","v":"(Site Code)_UNIT6"}]
["All parameters have been entered?",null,{"$f":"IF(COUNTA(C7:C18)=0,\"\",(COUNTA(C7:C18)=12))","v":""},{"$f":"IF(COUNTA(D7:D18)=0,\"\",(COUNTA(D7:D18)=12))","v":""},"","","",""]
[]
[null,"TR"]
[null,"KA"]
[null,"TA"]
[null,"VRMAX"]
[null,"VRMIN"]
[null,"TE"]
[null,"KF"]
[null,"TF"]
[null,"KP"]
[null,"KI"]
[null,"VBMAX"]
[null,"KE"]

{"sheet":"EX_IEEET4","index":33,"n_rows":17,"n_cols":8,"rows_kept":17,"cut":false,"hidden":false,"merged":[]}
[]
["<--Go back to Home page"]
["UNITS (treated as a comment)",null,"Unit 1","Unit 2 (if present)","Unit 3 (if present)","Unit 4 (if present)","Unit 5 (if present)","Unit 6 (if present)"]
["SITE CODE (Filled from Home Page)",null,{"$f":"RESOURCE1","v":"(Site Code)_UNIT1"},{"$f":"RESOURCE2","v":"(Site Code)_UNIT2"},{"$f":"RESOURCE3","v":"(Site Code)_UNIT3"},{"$f":"RESOURCE4","v":"(Site Code)_UNIT4"},{"$f":"RESOURCE5","v":"(Site Code)_UNIT5"},{"$f":"RESOURCE6","v":"(Site Code)_UNIT6"}]
["All parameters have been entered?",null,{"$f":"IF(COUNTA(C7:C17)=0,\"\",(COUNTA(C7:C17)=11))","v":""},{"$f":"IF(COUNTA(D7:D17)=0,\"\",(COUNTA(D7:D17)=11))","v":""},"","","",""]
[]
[null,"KR"]
[null,"TRH"]
[null,"KV"]
[null,"VRMAX"]
[null,"VRMIN"]
[null,"TE"]
[null,"KE"]
[null,"E1"]
[null,"SE(E1)"]
[null,"E2"]
[null,"SE(E2)"]

{"sheet":"EX_IEEEX1","index":34,"n_rows":22,"n_cols":8,"rows_kept":22,"cut":false,"hidden":false,"merged":[]}
[]
["<--Go back to Home page"]
["UNITS (treated as a comment)",null,"Unit 1","Unit 2 (if present)","Unit 3 (if present)","Unit 4 (if present)","Unit 5 (if present)","Unit 6 (if present)"]
["SITE CODE (Filled from Home Page)",null,{"$f":"RESOURCE1","v":"(Site Code)_UNIT1"},{"$f":"RESOURCE2","v":"(Site Code)_UNIT2"},{"$f":"RESOURCE3","v":"(Site Code)_UNIT3"},{"$f":"RESOURCE4","v":"(Site Code)_UNIT4"},{"$f":"RESOURCE5","v":"(Site Code)_UNIT5"},{"$f":"RESOURCE6","v":"(Site Code)_UNIT6"}]
["All parameters have been entered?",null,{"$f":"IF(COUNTA(C7:C22)=0,\"\",(COUNTA(C7:C22)=16))","v":""},{"$f":"IF(COUNTA(D7:D22)=0,\"\",(COUNTA(D7:D22)=14))","v":""},"","","",""]
[]
[null,"TR"]
[null,"KA"]
[null,"TA"]
[null,"TB"]
[null,"TC"]
[null,"VRMAX"]
[null,"VRMIN"]
[null,"KE"]
[null,"TE"]
[null,"KF"]
[null,"TF1"]
[null,"Switch"]
[null,"E1"]
[null,"SE(E1)"]
[null,"E2"]
[null,"SE(E2)"]

{"sheet":"EX_REXSYS","index":35,"n_rows":37,"n_cols":8,"rows_kept":37,"cut":false,"hidden":false,"merged":[]}
[]
["<--Go back to Home page"]
["UNITS (treated as a comment)",null,"Unit 1","Unit 2 (if present)","Unit 3 (if present)","Unit 4 (if present)","Unit 5 (if present)","Unit 6 (if present)"]
["SITE CODE (Filled from Home Page)",null,{"$f":"RESOURCE1","v":"(Site Code)_UNIT1"},{"$f":"RESOURCE2","v":"(Site Code)_UNIT2"},{"$f":"RESOURCE3","v":"(Site Code)_UNIT3"},{"$f":"RESOURCE4","v":"(Site Code)_UNIT4"},{"$f":"RESOURCE5","v":"(Site Code)_UNIT5"},{"$f":"RESOURCE6","v":"(Site Code)_UNIT6"}]
["All parameters have been entered?",null,{"$f":"IF(COUNTA(C7:C37)=0,\"\",(COUNTA(C7:C37)=31))","v":""},{"$f":"IF(COUNTA(D7:D37)=0,\"\",(COUNTA(D7:D37)=31))","v":""},"","","",""]
[]
["Voltage transducer time const (sec)","TR"]
["Voltage regulator porportional gain","KVP"]
["Voltage regulator integral gain","KVI"]
["Voltage regulator input limit (pu)","VIMAX"]
["Voltage regulator time const (sec)","TA"]
["Lag-time const (sec)","TB1"]
["Lead-time const (sec)","TC1"]
["Lag-time const (sec)","TB2"]
["Lead-time const (sec)","TC2"]
["Maximum controller output (pu)","VRMAX"]
["Minimum controller output (pu)","VRMIN"]
["Rate feedback gain","KF"]
["Rate feedback time const (sec > 0)","TF"]
["Feedback lead-time const (sec)","TF1"]
["Feedback lag-time const (sec)","TF2"]
["Rate feedback signal flag [0,1,2]","FBF"]
["Field current regulator porportional gain","KIP"]
["Field current regulator integral gain","KII"]
["Field current bridge time const (sec)","TP"]
["Maximum exciter field current (pu)","VFMAX"]
["Minimum exciter field current (pu)","VFMIN"]
["Field voltage controller feedback gain","KH"]
["Exciter field proportional const","KE"]
["Exciter field time const (sec > 0)","TE"]
["Rectifier regulation factor (pu)","KC"]
["Exciter regulation factor (pu)","KD"]
["Exciter flux at knee of curve (pu)","E1"]
["Saturation factor at knee","SE(E1)"]
["Maximum exciter (pu)","E2"]
["Saturation factor at maximum flux","SE(E2)"]
["Power supply limit factor","F1IMF"]

{"sheet":"EX_SEXS","index":36,"n_rows":12,"n_cols":8,"rows_kept":12,"cut":false,"hidden":false,"merged":[]}
[]
["<--Go back to Home page"]
["UNITS (treated as a comment)",null,"Unit 1","Unit 2 (if present)","Unit 3 (if present)","Unit 4 (if present)","Unit 5 (if present)","Unit 6 (if present)"]
["SITE CODE (Filled from Home Page)",null,{"$f":"RESOURCE1","v":"(Site Code)_UNIT1"},{"$f":"RESOURCE2","v":"(Site Code)_UNIT2"},{"$f":"RESOURCE3","v":"(Site Code)_UNIT3"},{"$f":"RESOURCE4","v":"(Site Code)_UNIT4"},{"$f":"RESOURCE5","v":"(Site Code)_UNIT5"},{"$f":"RESOURCE6","v":"(Site Code)_UNIT6"}]
["All parameters have been entered?",null,{"$f":"IF(COUNTA(C7:C12)=0,\"\",(COUNTA(C7:C12)=6))","v":""},{"$f":"IF(COUNTA(D7:D12)=0,\"\",(COUNTA(D7:D12)=6))","v":""},"","","",""]
[]
[null,"TA / TB"]
["(sec > 0)","TB"]
[null,"K"]
["(sec)","TE"]
["(pu on EFD base)","EMIN"]
["(pu on EFD base)","EMAX"]

{"sheet":"EX_ST6B","index":37,"n_rows":23,"n_cols":8,"rows_kept":23,"cut":false,"hidden":false,"merged":[]}
[]
["<--Go back to Home page"]
["UNITS (treated as a comment)",null,"Unit 1","Unit 2 (if present)","Unit 3 (if present)","Unit 4 (if present)","Unit 5 (if present)","Unit 6 (if present)"]
["SITE CODE (Filled from Home Page)",null,{"$f":"RESOURCE1","v":"(Site Code)_UNIT1"},{"$f":"RESOURCE2","v":"(Site Code)_UNIT2"},{"$f":"RESOURCE3","v":"(Site Code)_UNIT3"},{"$f":"RESOURCE4","v":"(Site Code)_UNIT4"},{"$f":"RESOURCE5","v":"(Site Code)_UNIT5"},{"$f":"RESOURCE6","v":"(Site Code)_UNIT6"}]
["All parameters have been entered?",null,{"$f":"IF(COUNTA(C7:C23)=0,\"\",(COUNTA(C7:C23)=17))","v":""},{"$f":"IF(COUNTA(D7:D23)=0,\"\",(COUNTA(D7:D23)=17))","v":""},"","","",""]
[]
["Flag (1 or 2, default = 1)","OEL"]
["Regulator input filter time const (sec)","TR"]
["Voltage regulator proportional gain (pu > 0)","KPA"]
["Voltage regulator integral gain","KIA"]
["Voltage regulator derivative gain","KDA"]
["Voltage regulator derivative channel time const (sec)","TDA"]
["Regulator output max limit","VAMAX"]
["Regulator output min limit","VAMIN"]
["Pre-control gain of the inner loop field regulator","KFF"]
["Forward gain of the inner loop field regulator","KM"]
["Exciter output current limit adjustment gain","KCL"]
["Exciter output current limiter gain","KLR"]
["Exciter current limit reference","ILR"]
["Voltage regulator output maximum limit","VRMAX"]
["Voltage regulator output minimum limit","VRMIN"]
["Feedback gain of the inner loop field voltage regulator","KG"]
["Feedback time const of the inner loop field volt reg","TG"]

{"sheet":"G_GAST","index":38,"n_rows":14,"n_cols":8,"rows_kept":14,"cut":false,"hidden":false,"merged":[]}
[]
["<--Go back to Home page"]
[null,null,"Unit 1","Unit 2","Unit 3","Unit 4","Unit 5","Unit 6"]
[null,null,{"$f":"RESOURCE1","v":"(Site Code)_UNIT1"},{"$f":"RESOURCE2","v":"(Site Code)_UNIT2"},{"$f":"RESOURCE3","v":"(Site Code)_UNIT3"},{"$f":"RESOURCE4","v":"(Site Code)_UNIT4"},{"$f":"RESOURCE5","v":"(Site Code)_UNIT5"},{"$f":"RESOURCE6","v":"(Site Code)_UNIT6"}]
["All parameters have been entered?",null,{"$f":"IF(COUNTA(C6:C14)=0,\"\",(COUNTA(C6:C14)=9))","v":""},"","","","",""]
["Speed Droop","R"]
["First Filter Time Const, T1>0","T1"]
["Second Filter Time Const, T2>0","T2"]
["Feedback Filter Time Const, T3>0","T3"]
["Ambient Temp Load Limit","AT"]
[null,"KT"]
["Limiter","Vmax"]
["Limiter","Vmin"]
[null,"Dturb"]

{"sheet":"G_GAST2A","index":39,"n_rows":34,"n_cols":8,"rows_kept":34,"cut":false,"hidden":false,"merged":[]}
[]
["<--Go back to Home page"]
[null,null,"Unit 1","Unit 2","Unit 3","Unit 4","Unit 5","Unit 6"]
[null,null,{"$f":"RESOURCE1","v":"(Site Code)_UNIT1"},{"$f":"RESOURCE2","v":"(Site Code)_UNIT2"},{"$f":"RESOURCE3","v":"(Site Code)_UNIT3"},{"$f":"RESOURCE4","v":"(Site Code)_UNIT4"},{"$f":"RESOURCE5","v":"(Site Code)_UNIT5"},{"$f":"RESOURCE6","v":"(Site Code)_UNIT6"}]
["All parameters have been entered?",null,{"$f":"IF(COUNTA(C6:C34)=0,\"\",(COUNTA(C6:C34)=29))","v":""},"","","","",""]
["Governor gain (1/droop) on turbine rating","W"]
["governor lead time const (sec)","X"]
["governor lag time const (sec > 0)","Y"]
["govenor mode:  (1) droop, (0) ISO","Z"]
[null,"ETD "]
[null,"TCD "]
["Turbine rating","TRATE "]
[null,"T"]
["Max limit (on turbine rating)","MAX"]
["Min limit (on turbine rating)","MIN"]
[null,"ECR "]
[null,"K3 "]
["valve positioner (a > 0)","a"]
["valve positioner (b > 0 sec)","b"]
["valve positioner","c"]
["(sec > 0)","τf"]
[null,"K5"]
[null,"K4"]
["(sec > 0)","T3"]
["(sec > 0)","T4"]
[null,"τt"]
[null,"T5"]
[null,"af1"]
[null,"bf1"]
[null,"af2"]
[null,"cf2"]
["Rated temperature (degree)","TR"]
["Minimum fuel flow (pu)","K6"]
["Temperature control","Tc"]

{"sheet":"G_GOV1","index":40,"n_rows":40,"n_cols":8,"rows_kept":40,"cut":false,"hidden":false,"merged":[]}
[]
["<--Go back to Home page"]
[null,null,"Unit 1","Unit 2","Unit 3","Unit 4","Unit 5","Unit 6"]
[null,null,{"$f":"RESOURCE1","v":"(Site Code)_UNIT1"},{"$f":"RESOURCE2","v":"(Site Code)_UNIT2"},{"$f":"RESOURCE3","v":"(Site Code)_UNIT3"},{"$f":"RESOURCE4","v":"(Site Code)_UNIT4"},{"$f":"RESOURCE5","v":"(Site Code)_UNIT5"},{"$f":"RESOURCE6","v":"(Site Code)_UNIT6"}]
["All parameters have been entered?",null,{"$f":"IF(COUNTA(C6:C40)=0,\"\",(COUNTA(C6:C40)=35))","v":""},"","","","",""]
["Feedback droop signal:  1=electrical power, 0=none, \n  -1=fuel valve stroke (true stroke), \n  -2=governor output (requested stroke)","Rselect"]
["Switch for fuel source characteristic:\n  0=fuel flow independent of speed,\n  1=fuel flow proportional to speed","FlagSw"]
["Permanent droop (pu)","R"]
["Electrical power transducer time const (sec)","Tpelec"]
["Maximum value for speed error signal","maxerr"]
["Minimum value for speed error signal","minerr"]
["Governor proportional gain","Kpgov"]
["Governor integral gain","Kigov"]
["Governor derivative gain","Kdgov"]
["Governor derivative control time const (sec)","Tdgov"]
["Maximum valve position limit","vmax"]
["Minimum valve position limit","vmin"]
["Actuator time const (sec)","Tact"]
["Turbine gain","Kturb"]
["No load fuel flow (pu)","Wfnl"]
["Turbine lag time const (sec)","Tb"]
["Turbine lead time const (sec)","Tc"]
["Transport lag time const for diesel engine (sec)","Teng"]
["Load limiter time const (sec)","Tfload"]
["Load limiter proportional gain for PI control","Kpload"]
["Load limiter integral gain for PI controller","Kiload"]
["Load limiter reference value","Ldref"]
["Mechanical damping coefficient (pu)","Dm"]
["Maximum valve opening rate (pu/sec)","Ropen"]
["Maximum valve closing rate (pu/sec)","Rclose"]
["Power controller (reset gain)","Kimw"]
["Acceleration limiter setpoint (pu/sec)","Aset"]
["Acceleration limiter gain","Ka"]
["Acceleration limiter time const (sec > 0)","Ta"]
["Turbine rating (MW)","Trate"]
["Speed governor deadband","db"]
["Temperature detection lead time const (sec)","Tsa"]
["Temperature detection lag time const (sec)","Tsb"]
["Maximum rate of load limit increase","Rup"]
["Maximum rate of load limit decrease","Tdown"]

{"sheet":"G_HYGOV","index":41,"n_rows":17,"n_cols":8,"rows_kept":17,"cut":false,"hidden":false,"merged":[]}
[]
["<--Go back to Home page"]
[null,null,"Unit 1","Unit 2","Unit 3","Unit 4","Unit 5","Unit 6"]
[null,null,{"$f":"RESOURCE1","v":"(Site Code)_UNIT1"},{"$f":"RESOURCE2","v":"(Site Code)_UNIT2"},{"$f":"RESOURCE3","v":"(Site Code)_UNIT3"},{"$f":"RESOURCE4","v":"(Site Code)_UNIT4"},{"$f":"RESOURCE5","v":"(Site Code)_UNIT5"},{"$f":"RESOURCE6","v":"(Site Code)_UNIT6"}]
["All parameters have been entered?",null,{"$f":"IF(COUNTA(C6:C17)=0,\"\",(COUNTA(C6:C17)=12))","v":""},"","","","",""]
["Permanent droop","R"]
["Temporary droop","r"]
["Governor time const","Tr"]
["Filter time const","Tf"]
["Servo time const","Tg"]
["Gate velocity limit","VELM"]
["Maximum gate limit","GMAX"]
["Minimum gate limit","GMIN"]
["Water time const","Tw"]
["Turbine gain","At"]
["Turbine damping","Dturb"]
["No power flow","qNL"]

{"sheet":"G_IEEEG1","index":42,"n_rows":25,"n_cols":8,"rows_kept":25,"cut":false,"hidden":false,"merged":[]}
[]
["<--Go back to Home page"]
[null,null,"Unit 1","Unit 2","Unit 3","Unit 4","Unit 5","Unit 6"]
[null,null,{"$f":"RESOURCE1","v":"(Site Code)_UNIT1"},{"$f":"RESOURCE2","v":"(Site Code)_UNIT2"},{"$f":"RESOURCE3","v":"(Site Code)_UNIT3"},{"$f":"RESOURCE4","v":"(Site Code)_UNIT4"},{"$f":"RESOURCE5","v":"(Site Code)_UNIT5"},{"$f":"RESOURCE6","v":"(Site Code)_UNIT6"}]
["All parameters have been entered?",null,{"$f":"IF(COUNTA(C6:C25)=0,\"\",(COUNTA(C6:C25)=20))","v":""},"","","","",""]
[null,"K"]
[null,"T1"]
[null,"T2"]
[null,"T3"]
[null,"Uo"]
[null,"Uc"]
[null,"PMAX"]
[null,"PMIN"]
[null,"T4"]
[null,"K1"]
[null,"K2"]
[null,"T5"]
[null,"K3"]
[null,"K4"]
[null,"T6"]
[null,"K5"]
[null,"K6"]
[null,"T7"]
[null,"K7"]
[null,"K8"]

{"sheet":"G_IEESGO","index":43,"n_rows":16,"n_cols":8,"rows_kept":16,"cut":false,"hidden":false,"merged":[]}
[]
["<--Go back to Home page"]
[null,null,"Unit 1","Unit 2","Unit 3","Unit 4","Unit 5","Unit 6"]
[null,null,{"$f":"RESOURCE1","v":"(Site Code)_UNIT1"},{"$f":"RESOURCE2","v":"(Site Code)_UNIT2"},{"$f":"RESOURCE3","v":"(Site Code)_UNIT3"},{"$f":"RESOURCE4","v":"(Site Code)_UNIT4"},{"$f":"RESOURCE5","v":"(Site Code)_UNIT5"},{"$f":"RESOURCE6","v":"(Site Code)_UNIT6"}]
["All parameters have been entered?",null,{"$f":"IF(COUNTA(C6:C16)=0,\"\",(COUNTA(C6:C16)=11))","v":""},"","","","",""]
["Controller lag (sec)","T1"]
["Controller lead compensation (sec)","T2"]
["Governor lag (sec > 0)","T3"]
["Delay due to steam inlet volumes (sec)","T4"]
["Reheater delay (sec)","T5"]
["Delay due to IP-LO cutrbine, crossover pipes (sec)","T6"]
["1/per unit regulation","K1"]
["fraction","K2"]
["fraction","K3"]
["upper power limit","PMAX"]
["lower power limit","PMIN"]

{"sheet":"G_PIDGOV","index":44,"n_rows":26,"n_cols":8,"rows_kept":26,"cut":false,"hidden":false,"merged":[]}
[]
["<--Go back to Home page"]
[null,null,"Unit 1","Unit 2","Unit 3","Unit 4","Unit 5","Unit 6"]
[null,null,{"$f":"RESOURCE1","v":"(Site Code)_UNIT1"},{"$f":"RESOURCE2","v":"(Site Code)_UNIT2"},{"$f":"RESOURCE3","v":"(Site Code)_UNIT3"},{"$f":"RESOURCE4","v":"(Site Code)_UNIT4"},{"$f":"RESOURCE5","v":"(Site Code)_UNIT5"},{"$f":"RESOURCE6","v":"(Site Code)_UNIT6"}]
["All parameters have been entered?",null,{"$f":"IF(COUNTA(C6:C26)=0,\"\",(COUNTA(C6:C26)=21))","v":""},"","","","",""]
["Feedback:  0=Elec Power, 1=Gate position","M"]
["Permanent droop","Rperm"]
["Speed detector time const (sec)","Treg"]
["Proportional gain (pu/sec)","Kp"]
["Reset gain (pu/sec)","Ki"]
["Derivative gain (pu)","Kd"]
["Controller time const (sec)","Ta"]
["Gate servo time const (sec)","Tb"]
["Turbine damping factor (pu)","Dturb"]
["Gate opening at speed no load (pu)","G0"]
["Intermediate gate opening (pu)","G1"]
["Power at gate opening G1 (pu)","P1"]
["Intermediate gate opening (pu)","G2"]
["Power at gate opening G2 (pu)","P2"]
["Power at fully opened gate (pu)","P3"]
["Maximum gate opening (pu)","Gmax"]
["Minimum gate opening (pu)","Gmin"]
["Factor multiplying Tw (pu > 0)","Atw"]
["Water inertia time const (sec)","Tw"]
["Minimum gate opening velocity (pu / sec)","Velmax"]
["Minimum gate closing velocity (pu / sec)","Velmin"]

{"sheet":"G_TGOV3","index":45,"n_rows":23,"n_cols":8,"rows_kept":23,"cut":false,"hidden":false,"merged":[]}
[]
["<--Go back to Home page"]
[null,null,"Unit 1","Unit 2","Unit 3","Unit 4","Unit 5","Unit 6"]
[null,null,{"$f":"RESOURCE1","v":"(Site Code)_UNIT1"},{"$f":"RESOURCE2","v":"(Site Code)_UNIT2"},{"$f":"RESOURCE3","v":"(Site Code)_UNIT3"},{"$f":"RESOURCE4","v":"(Site Code)_UNIT4"},{"$f":"RESOURCE5","v":"(Site Code)_UNIT5"},{"$f":"RESOURCE6","v":"(Site Code)_UNIT6"}]
["All parameters have been entered?",null,{"$f":"IF(COUNTA(C6:C23)=0,\"\",(COUNTA(C6:C23)=18))","v":""},"","","","",""]
["K = 1 / R (pu on Gen MVA base)","K"]
[null,"T1"]
[null,"T2"]
[null,"T3"]
[null,"Uo"]
[null,"Uc"]
[null,"Pmax"]
[null,"Pmin"]
[null,"T4"]
[null,"K1"]
[null,"T5"]
[null,"K2"]
[null,"T6"]
[null,"K3"]
[null,"TA"]
[null,"TB"]
[null,"TC"]
[null,"PRMAX"]

{"sheet":"G_UCBGT","index":46,"n_rows":47,"n_cols":8,"rows_kept":47,"cut":false,"hidden":false,"merged":[]}
[]
["<--Go back to Home page"]
[null,null,"Unit 1","Unit 2","Unit 3","Unit 4","Unit 5","Unit 6"]
[null,null,{"$f":"RESOURCE1","v":"(Site Code)_UNIT1"},{"$f":"RESOURCE2","v":"(Site Code)_UNIT2"},{"$f":"RESOURCE3","v":"(Site Code)_UNIT3"},{"$f":"RESOURCE4","v":"(Site Code)_UNIT4"},{"$f":"RESOURCE5","v":"(Site Code)_UNIT5"},{"$f":"RESOURCE6","v":"(Site Code)_UNIT6"}]
["All parameters have been entered?",null,{"$f":"IF(COUNTA(C6:C47)=0,\"\",(COUNTA(C6:C47)=42))","v":""},"","","","",""]
["Electrical power feedback droop (s)","Rp"]
["Electrical power feedback time const (pu)","Tp"]
["Governor feedback droop (pu)","Rv"]
["Proportional gain for outer loop MW control","Kmwp"]
["Integral gain for outer loop MW control","Kmwi"]
["Maximum limit on outer loop MW control","rfmax"]
["Minimum limit on outer loop MW control","rfmin"]
["Intentional deadband (pu)","dbd"]
["Intentional error limit (pu)","err"]
["Acceleration control time const (pu)","Ta"]
["Acceleration limit setpoint","aset"]
["Speed governor proporational gain (pu)","Kpg"]
["Speed governor integral gain (pu)","Kig"]
["Speed governor derivative gain (pu)","Kdg"]
["Speed governor derivative time const (pu)","Tdg"]
["Acceleration control proportional gain (pu)","Kpa"]
["Acceleration control integral gain (pu)","Kia"]
["Temperature control proporational gain","Kpt"]
["Temperature control integral gain","Kit"]
["Maximum fuel flow command","Fmax"]
["Minimum fuel flow command","Fmin"]
["Temperature limit","Tlimit"]
["Thermocouple time constant","Tthcp"]
["Heat transfer lead time constant","Tn"]
["Heat transfer lag time constant","Tdg"]
["Fuel system time constant","Tv"]
["Maximum valve opening (pu)","Vmax"]
["Minimum valve opening (pu)","Vmin"]
["Fuel flow multiplier (pu)","Fm"]
["Full-spped no-load fuel flow","Wfo"]
["Turbine gain","Kt"]
["Turbine numerator time constant 1","Ttnl"]
["Turbine numerator time constant 2","Ttn2"]
["Turbine denominator time constant 1","Ttd1"]
["Turbine denominator time constant 2","Ttd2"]
["1st point of turbine characteristic curve","X1"]
[null,"F(X1)"]
["2nd point","x2"]
[null,"F(x2)"]
["3rd point","x3"]
[null,"F(x3)"]
["Turbine rating (MW)","Trate"]

{"sheet":"G_UCCPSS","index":47,"n_rows":72,"n_cols":8,"rows_kept":72,"cut":false,"hidden":false,"merged":[]}
[]
["<--Go back to Home page"]
[null,null,"Unit 1","Unit 2","Unit 3","Unit 4","Unit 5","Unit 6"]
[null,null,{"$f":"RESOURCE1","v":"(Site Code)_UNIT1"},{"$f":"RESOURCE2","v":"(Site Code)_UNIT2"},{"$f":"RESOURCE3","v":"(Site Code)_UNIT3"},{"$f":"RESOURCE4","v":"(Site Code)_UNIT4"},{"$f":"RESOURCE5","v":"(Site Code)_UNIT5"},{"$f":"RESOURCE6","v":"(Site Code)_UNIT6"}]
["All parameters have been entered?",null,{"$f":"IF(COUNTA(C6:C72)=0,\"\",(COUNTA(C6:C72)=67))","v":""},"","","","",""]
["Electrical power feedback droop (s)","Rp"]
["Electrical power feedback time const (pu)","Tp"]
["Governor feedback droop (pu)","Rv"]
["Proportional gain for outer loop MW control","Kmwp"]
["Integral gain for outer loop MW control","Kmwi"]
["Maximum limit on outer loop MW control","rfmax"]
["Minimum limit on outer loop MW control","rfmin"]
["Intentional deadband (pu)","dbd"]
["Intentional error limit (pu)","err"]
["Acceleration control time const (pu)","Ta"]
["Acceleration limit setpoint","aset"]
["Speed governor proporational gain (pu)","Kpg"]
["Speed governor integral gain (pu)","Kig"]
["Speed governor derivative gain (pu)","Kdg"]
["Speed governor derivative time const (pu)","Tdg"]
["Acceleration control proportional gain (pu)","Kpa"]
["Acceleration control integral gain (pu)","Kia"]
["Temperature control proporational gain","Kpt"]
["Temperature control integral gain","Kit"]
["Maximum fuel flow command","Fmax"]
["Minimum fuel flow command","Fmin"]
["Temperature limit","Tlimit"]
["Thermocouple time constant","Tthcp"]
["Heat transfer lead time constant","Tn"]
["Heat transfer lag time constant","Td"]
["Fuel system time constant","Tv"]
["Maximum valve opening (pu)","Vmax"]
["Minimum valve opening (pu)","Vmin"]
["Fuel flow multiplier (pu)","Fm"]
["Full-spped no-load fuel flow","Wfo"]
["Turbine gain","Kt"]
["Turbine numerator time constant 1","Ttnl"]
["Turbine numerator time constant 2","Ttn2"]
["Turbine denominator time constant 1","Ttd1"]
["Turbine denominator time constant 2","Ttd2"]
["1st point of turbine characteristic curve","X1"]
[null,"F(X1)"]
["2nd point","x2"]
[null,"F(x2)"]
["3rd point","x3"]
[null,"F(x3)"]
["Turbine rating (MW)","Trate"]
["Point 1","Pgt1"]
[null,"Qg1"]
["Point 2","Pgt2"]
[null,"Qg2"]
["Point 3","Pgt3"]
[null,"Qg3"]
["Point 4","Pgt4"]
[null,"Qg4"]
["Point 5","Pgt5"]
[null,"Qg5"]
["Point 6","Pgt6"]
[null,"Qg6"]
["Point 7","Pgt7"]
[null,"Qg7"]
["Drum time const (s)","Tdrum"]
["Pressure loss due to flow friction in boiler tubes (pu)","Km"]
["Actuator time const for main steam (pu)","Tvs"]
["Pressure controller proportional gain (pu)","Kp"]
["Pressure controller integral gain (pu/sec)","Ki"]
["Turbine lead time const","Tn"]
["Turbine lag time const","Td"]
["Heat from sSupplemental firing (pu)","Qs"]
["Bypass valve opening","Bv"]
["Minimum steam pressure reference (pu)","Pref"]
["ST rating (MW)","TrateST"]

{"sheet":"G_UHRSG","index":48,"n_rows":38,"n_cols":8,"rows_kept":38,"cut":false,"hidden":false,"merged":[]}
[]
["<--Go back to Home page"]
[null,null,"Unit 1","Unit 2","Unit 3","Unit 4","Unit 5","Unit 6"]
[null,null,{"$f":"RESOURCE1","v":"(Site Code)_UNIT1"},{"$f":"RESOURCE2","v":"(Site Code)_UNIT2"},{"$f":"RESOURCE3","v":"(Site Code)_UNIT3"},{"$f":"RESOURCE4","v":"(Site Code)_UNIT4"},{"$f":"RESOURCE5","v":"(Site Code)_UNIT5"},{"$f":"RESOURCE6","v":"(Site Code)_UNIT6"}]
["All parameters have been entered?",null,{"$f":"IF(COUNTA(C6:C38)=0,\"\",(COUNTA(C6:C38)=33))","v":""},"","","","",""]
["Bus number for gas turbine #1","Jbus"]
["Machine ID for gas turbine #1","JID"]
["Bus number for gas turbine #2","Kbus"]
["Machine ID for gas turbine #2","KID"]
["Bus number for gas turbine #3","Lbus"]
["Machine ID for gas turbine #3","LID"]
["Bus number for gas turbine #4","Mbus"]
["Machine ID for gas turbine #4","MID"]
["Point 1","Pgt1"]
[null,"Qg1"]
["Point 2","Pgt2"]
[null,"Qg2"]
["Point 3","Pgt3"]
[null,"Qg3"]
["Point 4","Pgt4"]
[null,"Qg4"]
["Point 5","Pgt5"]
[null,"Qg5"]
["Point 6","Pgt6"]
[null,"Qg6"]
["Point 7","Pgt7"]
[null,"Qg7"]
["Drum time constant (s)","Tdrum"]
["Pressure loss due to flow friction in boiler tubes (pu)","Km"]
["Actuator time constant for main steam (pu)","Tv"]
["Pressure controller proportional gain (pu)","Kp"]
["Pressure controller integral gain (pu/s)","Ki"]
["Turbine lead time constant (s)","Tn"]
["Turbine lag time constant (s)","Td"]
["Heat from sSupplemental firing (pu)","Qs"]
["Bypass valve opening (pu)","Bv"]
["Minimum steam pressure reference (pu)","Pref"]
["Turbine rating (MW)","Trate"]

{"sheet":"G_WSIEG1","index":49,"n_rows":39,"n_cols":8,"rows_kept":39,"cut":false,"hidden":false,"merged":[]}
[]
["<--Go back to Home page"]
[null,null,"Unit 1","Unit 2","Unit 3","Unit 4","Unit 5","Unit 6"]
[null,null,{"$f":"RESOURCE1","v":"(Site Code)_UNIT1"},{"$f":"RESOURCE2","v":"(Site Code)_UNIT2"},{"$f":"RESOURCE3","v":"(Site Code)_UNIT3"},{"$f":"RESOURCE4","v":"(Site Code)_UNIT4"},{"$f":"RESOURCE5","v":"(Site Code)_UNIT5"},{"$f":"RESOURCE6","v":"(Site Code)_UNIT6"}]
["All parameters have been entered?",null,{"$f":"IF(COUNTA(C6:C39)=0,\"\",(COUNTA(C6:C39)=34))","v":""},"","","","",""]
[null,"K"]
[null,"T1"]
[null,"T2"]
[null,"T3"]
[null,"Uo"]
["Uc < 0","Uc"]
[null,"Pmax"]
[null,"Pmin"]
[null,"T4"]
[null,"K1"]
[null,"T5"]
[null,"T5"]
[null,"K3"]
[null,"K4"]
[null,"T6"]
[null,"K5"]
[null,"K6"]
[null,"T7"]
[null,"K7"]
[null,"K8"]
[null,"db1"]
[null,"err"]
[null,"db2"]
[null,"GV1"]
[null,"PGV1"]
[null,"GV2"]
[null,"PGV2"]
[null,"GV3"]
[null,"PGV3"]
[null,"GV4"]
[null,"PGV4"]
[null,"GV5"]
[null,"PGV5"]
[null,"IBLOCK"]

{"sheet":"ST_IEEEST","index":50,"n_rows":26,"n_cols":8,"rows_kept":26,"cut":false,"hidden":false,"merged":[]}
[]
["<--Go back to Home page"]
[null,null,"Unit 1","Unit 2","Unit 3","Unit 4","Unit 5","Unit 6"]
[null,null,{"$f":"RESOURCE1","v":"(Site Code)_UNIT1"},{"$f":"RESOURCE2","v":"(Site Code)_UNIT2"},{"$f":"RESOURCE3","v":"(Site Code)_UNIT3"},{"$f":"RESOURCE4","v":"(Site Code)_UNIT4"},{"$f":"RESOURCE5","v":"(Site Code)_UNIT5"},{"$f":"RESOURCE6","v":"(Site Code)_UNIT6"}]
["All parameters have been entered?",null,{"$f":"IF(COUNTA(C6:C24)=0,\"\",(COUNTA(C6:C24)=19))","v":false},"","","","",""]
["Stabilizer Input Code","M"]
["Remote bus number (default = 0) ","IB",0]
["Filter","A1"]
["Filter","A2"]
["Filter","A3"]
["Filter","A4"]
["Filter","A5"]
["Filter","A6"]
["Lead Lag","T1"]
["Lead Lag","T2"]
["Lead Lag","T3"]
["Lead Lag","T4"]
["Filter (if T5=0, sT5 will equal 1.0)","T5"]
["Filter (>0)","T6"]
[null,"KS"]
[null,"LSMAX"]
[null,"LSMIN"]
[null,"VCU"]
[null,"VCL"]
[]
["<--Go back to Home page"]

{"sheet":"ST_PSS2A","index":51,"n_rows":30,"n_cols":8,"rows_kept":30,"cut":false,"hidden":false,"merged":[]}
[]
["<--Go back to Home page"]
[null,null,"Unit 1","Unit 2","Unit 3","Unit 4","Unit 5","Unit 6"]
[null,null,{"$f":"RESOURCE1","v":"(Site Code)_UNIT1"},{"$f":"RESOURCE2","v":"(Site Code)_UNIT2"},{"$f":"RESOURCE3","v":"(Site Code)_UNIT3"},{"$f":"RESOURCE4","v":"(Site Code)_UNIT4"},{"$f":"RESOURCE5","v":"(Site Code)_UNIT5"},{"$f":"RESOURCE6","v":"(Site Code)_UNIT6"}]
["All parameters have been entered?",null,{"$f":"IF(COUNTA(C6:C28)=0,\"\",(COUNTA(C6:C28)=23))","v":false},{"$f":"IF(COUNTA(D6:D28)=0,\"\",(COUNTA(D6:D28)=23))","v":false},"","","",""]
["First Stabilizer Input Code\n  1 = Rotor speed deviation\n  2 = Bus frequency deviation\n  3 = Elec Power on MBASE (pu)\n  4 = Gen Accelerating Power (pu)\n  5 = Bus Voltage (pu)\n  6 = Derivative of pu bus voltage","ICS1"]
["1st Remote bus number (default = 0) ","Rembus1",0,0]
["Second Stabilizer Input Code\n  1 = Rotor speed deviation\n  2 = Bus frequency deviation\n  3 = Elec Power on MBASE (pu)\n  4 = Gen Accelerating Power (pu)\n  5 = Bus Voltage (pu)\n  6 = Derivative of pu bus voltage","ICS2"]
["2nd Remote bus number (default = 0) ","Rembus2"]
["M ramp tracking filter","M"]
["N ramp tracking filter","N"]
[null,"Tw1"]
[null,"Tw2"]
[null,"T6"]
[null,"Tw3"]
[null,"Tw4"]
[null,"T7"]
[null,"Ks2"]
[null,"Ks3"]
[null,"T8"]
[null,"T9"]
[null,"Ks1"]
[null,"T1"]
[null,"T2"]
[null,"T3"]
[null,"T4"]
[null,"VSTmax"]
[null,"VSTmin"]
[]
["<--Go back to Home page"]

{"sheet":"ST_PSS2B","index":52,"n_rows":36,"n_cols":8,"rows_kept":36,"cut":false,"hidden":false,"merged":[]}
[]
["<--Go back to Home page"]
[null,null,"Unit 1","Unit 2","Unit 3","Unit 4","Unit 5","Unit 6"]
[null,null,{"$f":"RESOURCE1","v":"(Site Code)_UNIT1"},{"$f":"RESOURCE2","v":"(Site Code)_UNIT2"},{"$f":"RESOURCE3","v":"(Site Code)_UNIT3"},{"$f":"RESOURCE4","v":"(Site Code)_UNIT4"},{"$f":"RESOURCE5","v":"(Site Code)_UNIT5"},{"$f":"RESOURCE6","v":"(Site Code)_UNIT6"}]
["All parameters have been entered?",null,{"$f":"IF(COUNTA(C6:C34)=0,\"\",(COUNTA(C6:C34)=29))","v":false},{"$f":"IF(COUNTA(D6:D34)=0,\"\",(COUNTA(D6:D34)=29))","v":""},"","","",""]
["First Stabilizer Input Code\n  1 = Rotor speed deviation\n  2 = Bus frequency deviation\n  3 = Elec Power on MBASE (pu)\n  4 = Gen Accelerating Power (pu)\n  5 = Bus Voltage (pu)\n  6 = Derivative of pu bus voltage","ICS1"]
["1st Remote bus number (default = 0) ","Rembus1",0]
["Second Stabilizer Input Code\n  1 = Rotor speed deviation\n  2 = Bus frequency deviation\n  3 = Elec Power on MBASE (pu)\n  4 = Gen Accelerating Power (pu)\n  5 = Bus Voltage (pu)\n  6 = Derivative of pu bus voltage","ICS2"]
["2nd Remote bus number (default = 0) ","Rembus2",0]
["M ramp tracking filter","M"]
["N ramp tracking filter","N"]
[null,"Tw1"]
[null,"Tw2"]
[null,"T6"]
[null,"Tw3"]
[null,"Tw4"]
[null,"T7"]
[null,"Ks2"]
[null,"Ks3"]
[null,"T8"]
[null,"T9"]
[null,"Ks1"]
[null,"T1"]
[null,"T2"]
[null,"T3"]
[null,"T4"]
[null,"T10"]
[null,"T11"]
[null,"VS1max"]
[null,"VS1min"]
[null,"VS2max"]
[null,"VS2min"]
[null,"VSTmax"]
[null,"VSTmin"]
[]
["<--Go back to Home page"]